Cogmind - Beta 16 @@@ ROGUE MODE // 2026.01.17 @ 00:40:26 Player: Wulphy Result: Establishing 0b11! Performance ------------- Evolutions (9) 4500 Regions Visited (35) 7000 Robots Destroyed (471) 2355 Value Destroyed (23502) 23502 Prototype IDs (386) 7720 Alien Tech Used (0) 0 Bonus (32442) 32442 TOTAL SCORE: 77519 Bonus ------- High Alert Combat Kills 2537 Follower Combat Kills 1163 Entered Garrisons 400 Entered DSFs 500 Network Hubs Disabled 200 Aligned with FarCom 300 Met Data Miner 300 Met Imprinter 300 Acquired ECA 300 Met Warlord at Base 500 MAIN.C Attacked Warlord 500 Warlord Defense Kills 668 Destroyed MAIN.C Guards 500 Met MAIN.C 5000 Destroyed MAIN.C Shell 5000 Destroyed MAIN.C 10000 Met Warlord at Command 2000 Win 3000 Friendly Fire -726 Cogmind --------- Core Integrity 1487/1600 Matter 300/300 Energy 1069/1090 System Corruption 0% Temperature Cool (14) Movement Treading (150) Location 0b11 Command Parts ------- > --- POWER (4) -------- Reinforced Quantum Reactor Zero-point Reactor Vortex Chain Reactor > --- PROPULSION (6) --- Biometal Heavy Treads Biometal Heavy Treads Advanced Heavy Siege Treads > --- UTILITY (11) ----- Experimental Heat Sink Huge Storage Unit Experimental Core Analyzer Experimental Armor Integrity Analyzer Improved Kinecellerator Experimental Weapon Cycler Centrium Heavy Armor Plating System Mapper Experimental System Purifier Long-range Tractor Beam > --- WEAPON (4) ------- XL Autogun Array > --- INVENTORY (25) --- Reinforced Quantum Reactor Centrium Heavy Treads Biometal Heavy Treads Experimental Coolant Injector Experimental Coolant Injector Experimental Energy Well (600) Matter Compressor (250) Matter Compressor (250) Matter Filter Layered Heavy Armor Plating Centrium Medium Armor Plating Graphene Brace Thermal Barrier Improved Dynamic Insulation System Vortex Driver (30) Vortex Driver (27) Graviton Cannon Graviton Cannon Graviton Cannon Enhanced Gamma Bomb Array Enhanced Gamma Bomb Array Peak State ------------ > --- POWER ------------ Improved Quantum Reactor Zero-point Reactor Vortex Chain Reactor > --- PROPULSION ------- Biometal Heavy Treads Biometal Heavy Treads Advanced Heavy Siege Treads > --- UTILITY ---------- Experimental Heat Sink Huge Storage Unit Active Sensor Suite Experimental Core Analyzer Experimental Armor Integrity Analyzer Experimental Weapon Cycler System Mapper Experimental System Purifier Long-range Tractor Beam > --- WEAPON ----------- XL Autogun Array > --- INVENTORY -------- Reinforced Quantum Reactor Centrium Heavy Treads Biometal Heavy Treads Experimental Coolant Injector Experimental Coolant Injector Experimental Energy Well Matter Compressor Matter Compressor Matter Filter Layered Heavy Armor Plating Centrium Medium Armor Plating Graphene Brace Thermal Barrier Improved Dynamic Insulation System Vortex Driver Vortex Driver Compact Linear Accelerator Graviton Cannon Graviton Cannon Graviton Cannon Enhanced Gamma Bomb Array Enhanced Gamma Bomb Array [Rating: 240] Favorites ----------- Power Quantum Reactor Engine Heavy Ion Engine Power Core Enhanced Fission Core Reactor Quantum Reactor Propulsion Compact Wheel Treads Advanced Medium Treads Leg Armored Leg Wheel Compact Wheel Utility Huge Storage Unit Device Advanced Heat Sink Storage Huge Storage Unit Processor Experimental Armor Integrity Analyzer Hackware System Mapper Protection Hardened Medium Armor Plating Weapon Heavy Plasma Cannon Energy Gun Thermic Laser Energy Cannon Heavy Plasma Cannon Ballistic Gun Light Assault Rifle Ballistic Cannon Light Antimatter Cannon Launcher Enhanced Gamma Bomb Array Special Weapon Improved Plasma Cutter Impact Weapon Hammer Slashing Weapon Great Axe Piercing Weapon Spear Build | -11 -10 -10 -10 -9 -8 -8 -8 -8 -7 -7 -7 -7 -6 -6 -6 -6 -6 -6 -6 -5 -5 -5 -5 -5 -5 -4 -4 -4 -4 -3 -3 -3 -2 -1 -1 ------- Run | Yrd Mat Min Exi Min Mat Gar Mat Gar Fac Low Low Dat Pro Fac Was Fac Low Low Zio Pro Fac Ext Cet Arc Hub Fac Upp Upp War Pro Res DSF Res Acc Com Slots Evolved 18 | . . . . . 4 . . . 2 . . . . 2 . . . . . . 2 . . . . 2 . . . . 2 . 2 2 . Power 3 | . . . . . . . . . 1 . . . . . . . . . . . . . . . . . . . . . 1 . . 1 . Propulsion 4 | . . . . . 1 . . . . . . . . 1 . . . . . . . . . . . 2 . . . . . . . . . Utility 9 | . . . . . 2 . . . 1 . . . . 1 . . . . . . 2 . . . . . . . . . 1 . 1 1 . Weapon 2 | . . . . . 1 . . . . . . . . . . . . . . . . . . . . . . . . . . . 1 . . Parts Attached 437 | 7 9 3 3 2 31 10 14 4 23 7 . . 13 32 4 50 8 5 4 3 25 16 7 5 3 50 1 1 7 . 3 14 25 19 29 Power 46 | 1 2 . . 2 3 . . 1 2 . . . . 7 . 9 1 . . . 3 2 2 . . 3 . . . . . 1 2 1 4 Engine 22 | 1 1 . . 2 3 . . 1 1 . . . . 3 . 9 1 . . . . . . . . . . . . . . . . . . Core 10 | . 1 . . . . . . . 1 . . . . 4 . . . . . . 2 1 . . . 1 . . . . . . . . . Reactor 14 | . . . . . . . . . . . . . . . . . . . . . 1 1 2 . . 2 . . . . . 1 2 1 4 Propulsion 72 | 2 . . 2 . 2 3 1 . 2 . . . 4 8 3 8 1 1 . . 3 3 1 3 . 14 . . . . . 7 1 2 1 Treads 29 | 2 . . . . 1 . . . . . . . 2 4 . . . . . . 1 . 1 2 . 5 . . . . . 7 1 2 1 Leg 7 | . . . . . . . . . . . . . . 1 . 5 . . . . . . . . . 1 . . . . . . . . . Wheel 36 | . . . 2 . 1 3 1 . 2 . . . 2 3 3 3 1 1 . . 2 3 . 1 . 8 . . . . . . . . . Hover . | . . . . . . . . . . . . . . . . . . . . . . . . . . . . . . . . . . . . Flight . | . . . . . . . . . . . . . . . . . . . . . . . . . . . . . . . . . . . . Utility 190 | 2 3 1 1 . 8 2 8 2 7 5 . . 6 10 1 21 4 3 2 1 8 7 2 2 1 27 1 1 4 . 3 2 13 12 20 Device 103 | 1 . 1 . . . 1 2 1 3 2 . . 2 5 1 12 2 2 1 1 4 7 . 1 1 22 . . 3 . 2 2 4 7 13 Storage 14 | 1 2 . 1 . . . . . . . . . 1 . . 2 . . 1 . . . . . . 1 . . . . . . 2 1 2 Processor 28 | . . . . . 3 . 1 . 1 1 . . . 1 . 5 . . . . . . 1 . . 2 . 1 1 . 1 . 7 1 2 Hackware 8 | . . . . . . . 2 . . . . . . 1 . . . . . . 1 . . . . 1 . . . . . . . 1 2 Protection 37 | . 1 . . . 5 1 3 1 3 2 . . 3 3 . 2 2 1 . . 3 . 1 1 . 1 1 . . . . . . 2 1 Artifact . | . . . . . . . . . . . . . . . . . . . . . . . . . . . . . . . . . . . . Weapon 129 | 2 4 2 . . 18 5 5 1 12 2 . . 3 7 . 12 2 1 2 2 11 4 2 . 2 6 . . 3 . . 4 9 4 4 Energy Gun 27 | 1 2 1 . . 5 2 3 1 . 1 . . . . . 4 2 . . . 1 2 1 . 1 . . . . . . . . . . Energy Cannon 32 | . . . . . 1 . 2 . 2 . . . 1 2 . 2 . . . 2 8 1 . . . 3 . . 1 . . . 3 1 3 Ballistic Gun 12 | 1 1 1 . . 2 . . . 1 . . . . 2 . 2 . . . . . . 1 . . . . . . . . . 1 . . Ballistic Cannon 27 | . . . . . 3 3 . . 2 1 . . 2 3 . . . . . . 1 . . . . 1 . . . . . 3 5 2 1 Launcher 14 | . . . . . 2 . . . 2 . . . . . . 2 . . 2 . 1 . . . . 2 . . 1 . . 1 . 1 . Special Weapon 2 | . . . . . . . . . . . . . . . . . . . . . . . . . 1 . . . 1 . . . . . . Impact Weapon 8 | . 1 . . . . . . . 4 . . . . . . 2 . 1 . . . . . . . . . . . . . . . . . Slashing Weapon 3 | . . . . . 1 . . . 1 . . . . . . . . . . . . 1 . . . . . . . . . . . . . Piercing Weapon 4 | . . . . . 4 . . . . . . . . . . . . . . . . . . . . . . . . . . . . . . Special Melee Weapon . | . . . . . . . . . . . . . . . . . . . . . . . . . . . . . . . . . . . . Unidentified Prototypes 50 | . . . . . 6 . . . 5 . . . . 2 . 4 . . 1 . 2 . 4 . 1 3 . . 5 . 1 2 9 2 3 Corrupted Parts 1 | . . . . . . . . . . . . . . . . . . . . . . . . . . . . . . . . . 1 . . System Corruption 7 | . . . . . . . . . . . . . . . . . . . . . . . . . . . . . . . . . 7 . . Parts Lost 68 | . 1 3 . . . 3 1 1 1 6 . . 14 7 6 2 3 2 . . 2 1 . 2 5 6 . . . . . . . 1 1 Power 5 | . . . . . . . . . . . . . 2 . 1 1 1 . . . . . . . . . . . . . . . . . . Propulsion 20 | . . . . . . 2 1 . . . . . 3 4 2 . 1 1 . . 1 . . 1 1 3 . . . . . . . . . Utility 23 | . . 1 . . . . . 1 . 2 . . 6 1 2 1 1 1 . . 1 . . 1 2 1 . . . . . . . 1 1 Weapon 20 | . 1 2 . . . 1 . . 1 4 . . 3 2 1 . . . . . . 1 . . 2 2 . . . . . . . . . Highest Loss Streak 8 | . 1 2 . . . 1 1 1 1 4 . . 8 3 6 2 3 2 . . 1 1 . 1 5 2 . . . . . . . 1 1 To Critical Strikes 1 | . . . . . . . . . . . . . . . . . . . . . . 1 . . . . . . . . . . . . . Average Backups 19 | 3 9 12 14 17 21 20 21 21 20 20 20 21 16 21 14 13 21 20 21 21 20 19 19 18 18 19 20 19 19 19 18 19 19 19 20 Power 1 | . 1 1 3 4 4 3 3 2 1 . . . . . . . 2 2 1 1 1 1 1 1 1 1 1 1 1 1 1 . . . . Propulsion 2 | 2 2 2 1 2 4 2 . . 1 2 2 2 1 1 . 2 3 3 3 3 2 1 1 1 1 1 2 2 2 2 2 3 2 2 2 Utility 9 | . 2 4 4 5 5 7 10 10 9 10 10 11 8 11 8 5 9 9 10 10 7 8 8 7 9 10 11 11 10 10 9 8 11 10 11 Weapon 6 | . 2 4 4 6 7 6 7 8 7 5 7 7 6 7 5 4 5 5 7 7 8 8 7 6 6 5 6 5 5 6 6 6 6 6 6 Tool/Special . | . . . . . . . . . . . . . . . . . . . . . . . . . . . . . . . . . . . . Unused Backups 117 | . 3 1 . 1 12 8 1 1 5 2 . . . 5 11 15 . . 2 1 3 5 4 . 1 12 . . 7 . . 4 . . 13 Power 9 | . . . . . 2 1 . . 1 1 . . . . . 1 . . . . 1 . . . . 1 . . . . . . . . 1 Propulsion 17 | . 2 . . 1 1 2 . . . . . . . 2 . 3 . . . . . . . . . 1 . . . . . 4 . . 1 Utility 57 | . 1 1 . . 3 5 . . 3 1 . . . 2 8 7 . . . 1 1 2 2 . 1 9 . . 3 . . . . . 7 Weapon 34 | . . . . . 6 . 1 1 1 . . . . 1 3 4 . . 2 . 1 3 2 . . 1 . . 4 . . . . . 4 Tool/Special . | . . . . . . . . . . . . . . . . . . . . . . . . . . . . . . . . . . . . Average Slot Usage (%) 88 | . 99 98 100 100 96 90 90 89 90 91 92 74 75 91 53 82 90 96 98 100 94 88 87 90 93 91 89 89 88 89 85 79 81 82 75 Engine 4 | . 9 . . 6 9 9 9 8 8 15 15 15 3 5 3 9 12 13 12 13 4 . . . . . . . . . . . . . . Core 2 | . 4 14 14 7 . . . . 4 . . . . 5 3 . . . . . 2 5 1 . . 4 5 5 5 5 4 . . . . Reactor 3 | . . . . . . . . . . . . . . . . . . . . . 2 5 9 11 11 5 5 5 5 5 4 8 8 11 12 Treads 8 | . 28 28 14 . 6 . . . . . . . 4 12 2 . . . . . 2 5 5 7 11 15 26 26 26 26 23 17 12 12 12 Leg 2 | . . . . . . . . . . . . . . . . 16 13 13 13 13 6 . . . . . . . . . . . . . . Wheel 8 | . . . 14 28 19 17 18 18 15 15 15 15 11 12 12 7 13 12 13 13 10 11 11 11 10 10 . . . . . . . . . Device 19 | . 11 10 14 14 1 7 12 8 20 11 7 7 7 10 8 14 19 26 27 26 24 23 28 26 23 29 31 31 30 26 26 28 25 21 16 Storage 6 | . 14 14 14 14 9 9 9 9 7 7 7 7 7 6 4 4 6 6 6 6 5 5 5 5 5 5 5 5 5 5 4 4 4 4 4 Processor 3 | . . . . . 8 9 4 . . 2 7 7 7 7 4 5 . . . . . . . . . . . . . 5 5 4 8 9 9 Protection 7 | . 2 1 . . 16 10 10 17 9 14 15 15 10 6 . 4 6 3 4 6 12 10 5 7 10 4 5 5 5 5 4 4 4 4 3 Energy Gun 6 | . 14 15 14 3 4 20 15 14 13 1 . . . . . 7 12 18 18 11 5 3 . . . 4 5 5 4 5 4 3 . . . Energy Cannon 4 | . . . . . 2 . 9 8 6 9 . . . 5 3 7 4 . . 8 10 13 17 17 16 3 . . . . . . . 1 . Ballistic Gun 1 | . 11 12 14 14 5 . . . . . . . . . . 1 . . . . . . . . . . . . . . . . . . 1 Ballistic Cannon 4 | . . . . . 1 . . . . 11 23 5 19 12 8 . . . . . . . . . . 2 5 5 4 5 4 3 16 14 10 Peak Build Rating 240 | 7 10 10 15 15 37 43 44 48 59 60 59 59 59 69 66 76 75 74 74 72 97 96 106 103 99 143 140 141 146 145 157 186 211 233 240 Average Rating 100 | 5 8 9 12 14 29 41 41 45 55 57 58 46 43 61 36 64 70 73 71 71 87 94 100 99 97 119 133 133 134 140 156 176 206 227 225 On Entrance 79 | . 7 10 10 15 15 37 42 44 48 56 59 59 59 36 65 4 75 73 74 72 71 94 96 103 98 76 134 133 133 141 140 157 182 211 225 Avg Prop Armor Cover (%) 8 | . . . . . 11 8 . . . . . . 15 10 7 7 7 10 11 10 7 6 7 6 6 6 . . . . . . . . . Naked Turns 77 | . . . . . . . . . . . . . . . 50 27 . . . . . . . . . . . . . . . . . . . Heaviest Build 230 | 13 30 30 89 91 114 114 120 123 133 138 130 130 130 151 135 139 138 129 125 131 170 169 176 183 182 170 169 157 155 155 165 197 209 226 230 Greatest Support 230 | 40 40 40 40 26 36 44 44 40 40 40 40 40 40 32 36 64 26 26 26 26 32 32 32 32 32 190 190 190 190 190 190 225 225 230 230 Greatest Overweight (x) 31 | . . . 3 3 4 4 2 3 3 3 3 3 31 9 27 5 7 4 4 5 9 5 5 5 9 9 . . . . . . . . . Average Overweight (x) 2 | . . . 1 3 3 2 2 2 2 3 3 2 3 4 1 2 4 4 3 4 5 5 5 5 5 1 . . . . . . . . . Largest Inventory Capacity 25 | 8 15 15 25 25 25 25 25 25 25 25 25 25 25 25 25 25 25 25 25 25 25 25 25 25 25 25 25 25 25 25 25 25 25 25 25 Average Capacity 23 | 7 10 15 20 25 25 25 25 25 25 25 25 25 25 25 18 17 25 25 25 25 25 25 25 25 25 25 25 25 25 25 25 25 25 25 25 Most Carried 25 | 7 12 14 17 25 25 25 25 25 25 25 25 25 25 25 25 25 25 25 25 25 25 25 25 25 25 25 25 25 25 25 25 25 25 25 25 Average Carried 23 | 4 9 12 15 20 24 24 24 24 24 24 24 25 20 24 18 16 24 23 24 24 24 24 24 24 24 24 25 24 24 25 24 24 24 24 24 Final Capacity 25 | 8 15 15 25 25 25 25 25 25 25 25 25 25 25 25 5 25 25 25 25 25 25 25 25 25 25 25 25 25 25 25 25 25 25 25 25 Final Carried 25 | 6 12 13 17 25 25 25 25 25 25 25 25 25 21 25 5 25 23 25 25 25 25 25 25 25 25 25 25 25 25 25 25 25 25 25 24 Class Distribution -------------------- 18% | Tank 17% | Scientist-Tank 15% | Mutant 10% | Generator-Tank 10% | Skirmisher 5% | Scavenger-Tank 4% | Commander-Tank 3% | Derelict-Tank 3% | Scavenger-Gunner 3% | Infiltrator-Tank Dominant Class ---------------- Mutant | -10/Materials Mutant | -10/Mines Mutant | -10/Exiles Mutant | -9/Mines Mutant | -8/Materials Mutant | -8/Garrison Skirmisher | -8/Materials Tank | -8/Garrison Tank | -7/Factory Tank | -7/Lower Caves Tank | -7/Lower Caves Mutant | -7/Data Miner Tank | -6/Proximity Caves Scavenger-Gunner | -6/Factory Skirmisher | -6/Waste Skirmisher | -6/Factory Tank | -6/Lower Caves Skirmisher | -6/Lower Caves Tank | -6/Zion Derelict-Tank | -5/Proximity Caves Derelict-Tank | -5/Factory Commander-Tank | -5/Extension Scavenger-Tank | -5/Cetus Scavenger-Tank | -5/Archives Scavenger-Tank | -5/Hub_04(d) Scientist-Tank | -4/Factory Scientist-Tank | -4/Upper Caves Scientist-Tank | -4/Upper Caves Scientist-Tank | -4/Warlord Scientist-Tank | -3/Proximity Caves Scientist-Tank | -3/Research Tank | -3/DSF Infiltrator-Tank | -2/Research Generator-Tank | -1/Access Generator-Tank | -1/Command Resources | -11 -10 -10 -10 -9 -8 -8 -8 -8 -7 -7 -7 -7 -6 -6 -6 -6 -6 -6 -6 -5 -5 -5 -5 -5 -5 -4 -4 -4 -4 -3 -3 -3 -2 -1 -1 ----------- Run | Yrd Mat Min Exi Min Mat Gar Mat Gar Fac Low Low Dat Pro Fac Was Fac Low Low Zio Pro Fac Ext Cet Arc Hub Fac Upp Upp War Pro Res DSF Res Acc Com Matter Collected 19087 | 262 238 527 . 60 567 301 234 376 725 404 146 . 978 1338 . 1450 121 287 156 129 457 367 120 81 40 1605 254 370 159 233 . 258 1125 2509 3210 Remotely 1488 | . . . . . . . . . . . . . . . . . . . . . . . . . . . . . . . . . . . 1488 Salvage Created 24124 | 54 409 226 . . 703 1277 955 1419 1888 794 54 . 715 1154 . 1628 19 65 . 262 1023 714 252 503 636 2221 142 196 153 232 . 439 76 2779 3136 Parts 1091 | 6 37 16 . . 44 71 57 65 106 43 5 . 28 45 . 65 2 5 . 11 34 28 6 15 24 96 3 10 11 12 . 14 . 122 110 Haulers Intercepted 19 | . 2 . . . 4 . 3 . 1 . . . . 1 . 3 . . . . 1 . . . . 2 . . . . . . 2 . . Recyclers Shooed 17 | . . . . . . . . . 2 . . . . 4 . 1 . . . . . . . . . 6 . . . . . . . 1 3 Parts Field Recycled 23 | . . . . . . . . . . . . . . . . . . . . . . . . . . 19 4 . . . . . . . . Retrieved Matter 293 | . . . . . . . . . . . . . . . . . . . . . . . . . . 293 . . . . . . . . . Parts Self-Destructed 88 | . . . . . . . . . . 23 5 . 24 . . . . 5 . 10 . . . . . . 2 7 . 12 . . . . . Prevented 25 | . . . . . . . . . . 18 . . 4 . . . . . . . . . . . . . . 3 . . . . . . . Parts Restored . | . . . . . . . . . . . . . . . . . . . . . . . . . . . . . . . . . . . . Kills | -11 -10 -10 -10 -9 -8 -8 -8 -8 -7 -7 -7 -7 -6 -6 -6 -6 -6 -6 -6 -5 -5 -5 -5 -5 -5 -4 -4 -4 -4 -3 -3 -3 -2 -1 -1 ------- Run | Yrd Mat Min Exi Min Mat Gar Mat Gar Fac Low Low Dat Pro Fac Was Fac Low Low Zio Pro Fac Ext Cet Arc Hub Fac Upp Upp War Pro Res DSF Res Acc Com Combat Hostiles Destroyed 369 | . 13 7 . . 16 24 12 24 30 16 3 . 20 16 . 14 1 3 . 9 12 12 3 4 9 25 2 4 7 6 . 9 . 37 31 Melee 4 | . . . . . 3 . . 1 . . . . . . . . . . . . . . . . . . . . . . . . . . . Guns 88 | . 11 7 . . 8 18 3 6 8 1 . . . . . 1 1 3 . 1 1 . . . . 7 . 2 2 1 . . . . 7 Cannons 185 | . . . . . 2 3 6 12 11 11 . . 19 16 . 10 . . . 2 8 10 1 2 7 15 2 2 5 5 . 1 . 20 15 AOE 47 | . 2 . . . 2 2 3 4 4 2 3 . . . . 3 . . . 4 . . . . . . . . . . . 8 . 6 4 Classes Destroyed 23 | 1 3 1 . . 2 2 2 1 3 2 . . 1 1 . . 1 . . . . . . . . . . . 2 . . 1 . . . Worker 17 | . . . . . . . . . . . . . . 3 . 5 . . . . 1 . . . 2 1 . . . . . . . 2 3 Builder 6 | . . . . . . . 1 . 3 . . . . . . . . . . . 1 . . . . . . . . . . . . 1 . Tunneler 10 | 2 . 1 . . . . . . 1 . . . . . . 4 . . . . . . . . . 2 . . . . . . . . . Hauler 19 | . 2 . . . 4 . 3 . 1 . . . . 1 . 3 . . . . 1 . . . . 2 . . . . . . 2 . . Recycler 25 | . . 1 . . . . . . 1 . . . . 3 . 4 . . . . 1 . . . . 4 . . . . . . . 6 5 Minesweeper 3 | . . . . . . . . . . 1 . . . . . . . . . . . . . . . . . 2 . . . . . . . Mechanic 2 | . . . . . . . . . . . . . 1 1 . . . . . . . . . . . . . . . . . . . . . Operator 10 | . . . . . . . 2 . 3 . . . . . . . . . . . . . . 4 . 1 . . . . . . . . . Watcher 9 | . . . . . 1 . 1 . 1 . . . . . . 1 . . . . 1 . 1 . 1 . . . . . . . . . 2 Swarmer 79 | . 9 6 . . 8 6 . 4 4 4 3 . 3 . . 4 . 3 . 7 . 2 . . . . . . 2 3 . . . 5 6 Cutter 2 | . . . . . . . . 2 . . . . . . . . . . . . . . . . . . . . . . . . . . . Saboteur 2 | . . . . . . . . . . . . . . . . . . . . . . . . . . . . . 2 . . . . . . Grunt 91 | . 4 1 . . 4 9 6 10 9 8 . . 3 7 . 1 . . . . 4 2 . . 5 3 . 1 2 . . 4 . 8 . Brawler 4 | . . . . . . . . . 1 1 . . 2 . . . . . . . . . . . . . . . . . . . . . . Duelist 6 | . . . . . . . . . 1 . . . 3 2 . . . . . . . . . . . . . . . . . . . . . Sentry 52 | . . . . . 4 5 6 4 6 1 . . 2 1 . 3 . . . 1 2 3 . 4 1 6 2 1 . . . . . . . Specialist 3 | . . . . . . . . . . . . . . . . . . . . . . . . . . . . . . . . 3 . . . Hunter 33 | . . . . . . 1 . 1 1 1 . . 5 . . . . . . 1 . 2 . . 1 2 . 2 . . . . . 6 10 Programmer 81 | . . . . . . 3 . 3 6 . . . 1 6 . 6 . . . . 6 1 . . 2 14 . . . 3 . 1 . 18 11 Heavy 3 | . . . . . . . . . 1 . . . . . . . . . . . . . . . . . . . . . . 1 . . 1 Behemoth 3 | . . . . . . . . . . 1 . . 1 . . . . . . . . 1 . . . . . . . . . . . . . Cetus Guard 3 | . . . . . . . . . . . . . . . . . . . . . . . 3 . . . . . . . . . . . . Hotshot 1 | . . . . . . . . . . . . . . . . . . . . . . 1 . . . . . . . . . . . . . Combat Programmer 1 | . . . . . . . . . . . . . . . . . . . . . . . . . . . . . . . . . . . 1 Striker 1 | . . . . . . . . . . . . . . . . . . . . . . . . . . . . . 1 . . . . . . Thief 1 | . . . . . . . . . . . . . . . . . 1 . . . . . . . . . . . . . . . . . . Savage 1 | . . . . . . . . . . 1 . . . . . . . . . . . . . . . . . . . . . . . . . Guerrilla 1 | . . . . . . . . . 1 . . . . . . . . . . . . . . . . . . . . . . . . . . Best Kill Streak 16 | 2 3 3 . . 7 4 3 4 9 8 3 . 10 7 . 5 1 3 . 4 4 3 4 2 5 3 1 2 5 3 . 5 1 16 7 Combat Bots Only 12 | . 3 3 . . 7 4 2 4 9 7 3 . 10 7 . 4 1 3 . 4 3 3 3 1 4 3 1 2 5 3 . 5 . 12 5 Max Kills in Single Turn 5 | 1 2 1 . . 2 3 1 2 2 3 3 . 1 1 . 2 1 1 . 4 3 2 1 1 2 1 1 1 2 1 . 3 1 3 5 Gunslinging 1 | . . . . . 1 1 . . . . . . . . . . . . . . . . . . . . . . . . . . . . . Exploded 4 | . 2 . . . 2 2 1 2 1 2 3 . . . . 2 . . . 4 . . . . . . . . . . . 3 . 3 3 Melee 1 | . . . . . 1 . . 1 . . . . . . . . . . . . . . . . . . . . . . . . . . . Uniques/NPCs Destroyed 2 | . . . . . . . . . . . . . . . . . . . . . . . . . . . . . . . . . . . 2 MAIN.C Shell (-1/Command) MAIN.C (-1/Command) Combat | -11 -10 -10 -10 -9 -8 -8 -8 -8 -7 -7 -7 -7 -6 -6 -6 -6 -6 -6 -6 -5 -5 -5 -5 -5 -5 -4 -4 -4 -4 -3 -3 -3 -2 -1 -1 -------- Run | Yrd Mat Min Exi Min Mat Gar Mat Gar Fac Low Low Dat Pro Fac Was Fac Low Low Zio Pro Fac Ext Cet Arc Hub Fac Upp Upp War Pro Res DSF Res Acc Com Hostile Shots Fired 1870 | . 46 55 . . 43 73 15 98 157 71 12 . 181 130 9 116 5 7 . 24 69 36 22 18 51 116 18 31 43 17 . 94 2 175 136 Missed 585 | . 14 12 . . 17 18 1 28 60 19 4 . 46 41 . 33 1 . . 9 20 11 6 4 15 38 3 14 21 6 . 43 . 62 39 Intercepted 3 | . . . . . . . . . . . . . . . . . . . . . . . . . . . . . . . . . . . 3 Hits 1285 | . 32 43 . . 26 55 14 70 97 52 8 . 135 89 9 83 4 7 . 15 49 25 16 14 36 78 15 17 22 11 . 51 2 113 97 Melee 35 | . . . . . . . . 8 . . . . 12 2 9 . 3 . . . . . . . . . . . 1 . . . . . . Projectile 1250 | . 32 43 . . 26 55 14 62 97 52 8 . 123 87 . 83 1 7 . 15 49 25 16 14 36 78 15 17 21 11 . 51 2 113 97 AOE 8 | . . . . . . . . 2 . . . . . . . . . . . . . . . . . . . . . . . . 1 1 4 Critical Strikes 74 | . . . . . . 4 . 7 1 1 . . 2 6 6 4 . . . . 5 1 4 . 6 5 . 2 2 . . . . 9 9 Actively Blocked 8 | . . . . . . . . . . . . . . . . . . . . . . . . . . . . . . . . . . 4 4 Part Disruptions 2 | . . . . . . . . . . . . . . . . . . . . . . . . . . . . . . . . . . . 2 Damage Taken 20695 | . 325 397 . . 328 727 240 1103 758 806 136 . 2693 1449 378 1318 397 111 . 245 1123 511 334 344 1067 1195 227 196 317 166 12 207 28 1762 1795 Core 2026 | . 52 52 . . 46 37 18 237 120 21 31 . 342 86 299 97 72 17 . 54 103 11 44 40 41 68 . 12 . . . 4 9 43 70 Absorbed by Shields 2350 | . . . . . . 66 . . 273 42 . . . . 28 . . . . . . . . . . 89 84 69 112 61 12 233 28 644 609 Reduced by Siege Mode 274 | . . . . . . . . . . . . . . . . . . . . . . . . . . . . . . . . . . 155 119 Redirected to Shielding 62 | . 16 35 . . 11 . . . . . . . . . . . . . . . . . . . . . . . . . . . . . . Ignored by Resistances 2062 | . . . . . . 43 . . . . . . . . . 74 . . . 22 49 53 90 34 . 213 32 91 91 31 . 229 . 321 689 Regen/Repaired (Parts) 672 | . . . . . . . . . 195 . . . . . . . . . . . . . . . . . . . 273 . . . . . 204 Core Remaining (%) 70 | 100 . . . 58 . . . 38 . . . . 26 . . . . . . 26 . . . . 76 . . . . 93 . 99 99 . 92 Volleys Fired 1203 | 7 30 24 . . 27 41 29 40 57 41 7 . 47 87 . 106 22 3 . 38 38 26 11 18 38 121 20 25 15 16 13 13 10 98 135 Largest 4 | 1 2 2 . . 3 3 3 3 3 3 1 . 3 3 . 3 3 3 . 3 3 3 3 3 3 3 2 2 2 2 1 2 4 4 4 Hottest 294 | 20 80 100 . . 111 145 176 176 182 195 45 . 158 220 . 260 260 245 . 255 278 286 286 286 286 268 145 145 145 145 240 240 218 294 218 Shots Fired 2419 | 7 56 48 . . 70 102 75 99 148 112 7 . 131 168 . 158 22 10 . 56 101 76 33 55 80 203 26 42 27 25 13 17 25 202 225 Gun 833 | 7 56 48 . . 47 96 36 42 71 17 . . 6 3 . 53 5 10 . 21 29 9 . . . 122 20 27 14 16 13 6 . . 59 Cannon 1532 | . . . . . 21 6 39 57 73 95 6 . 125 165 . 104 17 . . 34 72 67 33 55 80 81 6 15 13 9 . 4 25 173 157 Launcher 54 | . . . . . 2 . . . 4 . 1 . . . . 1 . . . 1 . . . . . . . . . . . 7 . 29 9 Special . | . . . . . . . . . . . . . . . . . . . . . . . . . . . . . . . . . . . . Kinetic 852 | 7 23 20 . . 59 6 . 20 16 40 6 . 119 69 . . . . . . . . . . . 28 6 15 13 9 . 4 25 157 210 Thermal 995 | . 5 28 . . 9 . . . . . . . . 99 . 140 22 10 . 55 93 76 33 55 80 175 20 27 14 16 13 6 . 16 3 Explosive 9 | . . . . . 2 . . . 4 . 1 . . . . 1 . . . 1 . . . . . . . . . . . . . . . Electromagnetic 553 | . 28 . . . . 96 75 79 128 72 . . 12 . . 17 . . . . 8 . . . . . . . . . . . . 29 9 Entropic 10 | . . . . . . . . . . . . . . . . . . . . . . . . . . . . . . . . 7 . . 3 Robot Hit Streak 71 | 4 22 7 . . 7 20 17 14 20 18 6 . 7 10 . 17 13 17 . 12 24 37 17 6 15 71 14 11 15 24 . 10 20 66 53 Robot Miss Streak 7 | 2 3 5 . . 3 2 2 7 3 2 4 . 3 7 . 3 . 1 . 2 2 1 2 2 2 1 2 1 1 1 . 1 . 4 7 Penetration Max 1 | . . . . . . . . . . . . . . . . . . . . . . . . . . . . . 1 . . . . . . Secondary Targets 8 | . . 2 . . 1 4 . . . . . . . . . . . 1 . . . . . . . . . . . . . . . . . Max Gunslinging Chain 1 | . . 1 . . 1 1 . . . . . . . . . . . 1 . . . . . . . . . . . . . . . . . Shots Hit Robots 1557 | 4 40 25 . . 54 92 58 88 113 72 1 . 79 93 . 87 3 5 . 21 68 57 25 37 41 136 9 25 22 16 . 13 14 118 141 Core Hits 860 | 2 20 12 . . 27 54 34 49 69 33 5 . 33 48 . 43 2 3 . 12 24 21 8 14 15 57 2 9 12 7 . 18 4 84 139 Critical Kills 14 | . . . . . . . . . . . . . 2 2 . 1 . . . 1 1 2 1 2 1 1 . . . . . . . . . Critical Parts Destroyed 4 | . . . . . . . . . . . . . 4 . . . . . . . . . . . . . . . . . . . . . . Critical Strikes 76 | . . 1 . . 5 3 2 3 2 3 . . 10 4 . 3 . . . 5 5 2 1 2 1 3 1 1 . 3 . 1 . 6 9 Burn 11 | . . 1 . . . . . . . . . . . . . 2 . . . 4 4 . . . . . . . . . . . . . . Meltdown 12 | . . . . . . . . . . . . . . 2 . 1 . . . 1 1 2 1 2 1 1 . . . . . . . . . Destroy 6 | . . . . . . . . . . . . . 6 . . . . . . . . . . . . . . . . . . . . . . Blast 36 | . . . . . 2 1 . . 2 2 . . 4 2 . . . . . . . . . . . 2 1 1 . 3 . 1 . 6 9 Corrupt 5 | . . . . . . . 2 2 . 1 . . . . . . . . . . . . . . . . . . . . . . . . . Impale 6 | . . . . . 3 2 . 1 . . . . . . . . . . . . . . . . . . . . . . . . . . . Melee Attacks 133 | . 1 . . 2 18 47 7 47 8 . . . . . . . . 2 1 . . . . . . . . . . . . . . . . Impact 16 | . 1 . . 2 4 . . . 6 . . . . . . . . 2 1 . . . . . . . . . . . . . . . . Slashing 2 | . . . . . . . . . 2 . . . . . . . . . . . . . . . . . . . . . . . . . . Piercing 115 | . . . . . 14 47 7 47 . . . . . . . . . . . . . . . . . . . . . . . . . . . Sneak Attacks 6 | . 1 . . . 4 . . . 1 . . . . . . . . . . . . . . . . . . . . . . . . . . Combat Hostiles . | . . . . . . . . . . . . . . . . . . . . . . . . . . . . . . . . . . . . Follow-up Attacks 1 | . . . . . 1 . . . . . . . . . . . . . . . . . . . . . . . . . . . . . . Damage Inflicted 59811 | 69 598 290 . . 1272 2350 1565 2760 3272 1768 210 . 2289 3065 . 3200 54 92 . 619 2150 1971 883 1207 1552 5210 426 1112 1063 823 . 4116 530 6733 8562 Guns 14117 | 69 457 290 . . 378 1376 553 693 1018 114 . . 10 . . 705 54 92 . 323 444 152 . . . 2272 146 361 338 228 . 106 . . 3938 Cannons 33145 | . . . . . 209 166 792 839 1554 1492 . . 2279 3065 . 1721 . . . 105 1565 1791 883 1207 1504 2938 280 751 725 595 . 170 530 4394 3590 Explosions 10180 | . 101 . . . 171 121 220 289 566 162 210 . . . . 767 . . . 191 141 28 . . . . . . . . . 3840 . 2339 1034 Melee 2284 | . 40 . . . 514 687 . 909 134 . . . . . . . . . . . . . . . . . . . . . . . . . . Ramming 85 | . . . . . . . . 30 . . . . . . . 7 . . . . . . . . 48 . . . . . . . . . . Kinetic 21918 | 69 189 92 . . 519 166 . 316 365 646 . . 2144 1242 . . . . . . . . . . . 1420 280 751 725 595 . 170 530 4171 7528 Thermal 19220 | . 125 198 . . 68 121 220 289 214 162 . . . 1823 . 2616 54 92 . 428 1862 1971 883 1207 1504 3790 146 361 338 228 . 106 . 343 71 Explosive 1217 | . . . . . 171 . . . 352 . 210 . . . . 152 . . . 191 141 . . . . . . . . . . . . . . Electromagnetic 11247 | . 244 . . . . 1376 1345 1216 2207 960 . . 145 . . 425 . . . . 147 . . . . . . . . . . . . 2219 963 Impact 255 | . 40 . . . 81 . . . 134 . . . . . . . . . . . . . . . . . . . . . . . . . . Slashing . | . . . . . . . . . . . . . . . . . . . . . . . . . . . . . . . . . . . . Piercing 2029 | . . . . . 433 687 . 909 . . . . . . . . . . . . . . . . . . . . . . . . . . . Entropic 3840 | . . . . . . . . . . . . . . . . . . . . . . . . . . . . . . . . 3840 . . . Highest Corruption 35 | . . . . . . 1 1 3 3 3 3 3 5 2 17 27 35 35 35 . 5 5 5 5 5 5 5 5 5 4 . . 7 10 15 Average Corruption 7 | . . . . . . 1 1 2 2 3 3 3 3 1 9 23 28 35 35 . 3 5 5 4 1 2 5 5 5 3 . . 7 4 8 Corruption Purged 30 | . . . . . . . . . . . . . . . . . . . . . . . . 5 . . . . . . . . . 10 15 Corruption Blocked . | . . . . . . . . . . . . . . . . . . . . . . . . . . . . . . . . . . . . Effects 773 | . . . . . . 6 9 23 18 20 10 1 30 20 6 165 42 40 2 . 20 61 6 8 3 50 30 40 2 6 . . 1 33 121 Message Errors 199 | . . . . . . 3 4 5 7 5 5 . 8 4 2 45 10 7 . . 5 13 3 2 . 8 8 9 1 2 . . 1 8 34 Matter Fused 177 | . . . . . . . 1 3 3 6 1 . 10 6 . 33 13 11 . . 4 14 . 2 1 14 10 8 . 1 . . . 12 24 Heat Flow Errors 83 | . . . . . . 1 1 2 1 3 1 . 3 2 . 15 2 7 1 . 1 8 . . . 5 2 6 . 3 . . . 3 16 Energy Discharges 97 | . . . . . . 1 . 2 2 1 1 . 1 2 . 24 4 4 . . 1 10 1 1 . 7 5 9 . . . . . 5 16 Parts Rejected 9 | . . . . . . . . . . . . . 1 1 . 3 . . . . . . . . . 2 . . . . . . . . 2 Parts Fused 5 | . . . . . . . 1 . . . . . . . . . . 1 . . . 3 . . . . . . . . . . . . . Data Loss (minor) 81 | . . . . . . . 1 4 2 1 2 1 2 3 1 15 5 5 . . 6 8 . 2 1 3 1 4 . . . . . 2 12 Data Loss (major) 46 | . . . . . . . . 3 1 1 . . 3 . 2 13 1 4 1 . 1 3 1 . . 3 2 . . . . . . 1 6 Misfires 30 | . . . . . . 1 . 1 2 1 . . 1 . . 5 2 1 . . 2 1 . 1 1 4 1 2 . . . . . 1 3 Alerts 17 | . . . . . . . 1 1 . 1 . . 1 1 1 2 1 . . . . . 1 . . 1 . 1 1 . . . . 1 3 Misdirections 3 | . . . . . . . . . . . . . . . . 2 . . . . . . . . . . . . . . . . . . 1 Weapon Failures 26 | . . . . . . . . 2 . 1 . . . 1 . 8 4 . . . . 1 . . . 3 1 1 . . . . . . 4 Overload Shots 2 | . . . . . . . . . . . . . . . . . . . . . . . . . . . . . . . 1 1 . . . Overflow Damage 1732 | . 26 . . . . 15 . 20 117 52 15 . 49 62 . 279 . . . 23 101 11 . 35 75 160 . 99 16 17 . 49 2 324 185 Projectiles 1225 | . . . . . . . . 10 23 52 . . 49 62 . 49 . . . 17 83 11 . 35 72 160 . 99 16 17 . . 2 304 164 Explosions 365 | . 6 . . . . . . . . . 15 . . . . 230 . . . 6 18 . . . . . . . . . . 49 . 20 21 Melee 142 | . 20 . . . . 15 . 10 94 . . . . . . . . . . . . . . . 3 . . . . . . . . . . Knockbacks 116 | . . . . . . . . 2 3 1 . . 23 14 . . . . . . . . . . . 1 . 6 4 2 . . 1 25 34 Impact 1 | . . . . . . . . . 1 . . . . . . . . . . . . . . . . . . . . . . . . . . Kinetic 108 | . . . . . . . . 2 2 1 . . 20 13 . . . . . . . . . . . 1 . 6 4 2 . . 1 24 32 Secondary 7 | . . . . . . . . . . . . . 3 1 . . . . . . . . . . . . . . . . . . . 1 2 Self-Inflicted Damage 586 | . 27 . . . 20 51 29 46 33 10 24 . . . . 125 . . . . 158 18 . . 23 . . . . . . . . 12 10 Shots 16 | . 1 . . . 1 1 1 1 1 1 1 . . . . 3 . . . . 2 1 . . . . . . . . . . . 1 1 Rammed 6 | . . . . . . . . 3 . . . . . . . 1 . . . . . . . . 2 . . . . . . . . . . Targets Rammed 6 | . . . . . . . . 3 . . . . . . . 1 . . . . . . . . 2 . . . . . . . . . . Kicked . | . . . . . . . . . . . . . . . . . . . . . . . . . . . . . . . . . . . . Crushed . | . . . . . . . . . . . . . . . . . . . . . . . . . . . . . . . . . . . . Highest Temperature 498 | . 141 237 . . 339 345 165 345 378 351 118 . 306 225 . 315 96 80 . . 254 47 . 144 69 265 141 354 8 246 124 92 233 298 498 Average Temperature 83 | . 42 81 . . 107 67 54 123 101 85 70 . 100 49 . 75 38 41 . . 133 27 . 73 34 60 29 100 6 92 78 55 90 78 102 Received Heat Transfer 2985 | . 81 72 . . 81 303 90 261 137 198 . . 369 549 . 240 . . . 18 162 54 . 54 99 71 36 6 42 . . . 8 42 12 Effects 13 | . . . . . . . . . 6 . . . . . . 3 . . . . . . . . . . . 1 . . . . . 1 2 Shutdowns 3 | . . . . . . . . . . . . . . . . . . . . . . . . . . . . 1 . . . . . . 2 Energy Bleed 3 | . . . . . . . . . 2 . . . . . . . . . . . . . . . . . . . . . . . . 1 . Interference 7 | . . . . . . . . . 4 . . . . . . 3 . . . . . . . . . . . . . . . . . . . Siege Activations 25 | . . . . . . . . . . . . . . . . . . . . . . . . . . . . 1 . . . 1 . 9 14 Total Turns 367 | . . . . . . . . . . . . . . . . . . . . . . . . . . . . 8 . . . 5 . 178 176 Longest Duration 50 | . . . . . . . . . . . . . . . . . . . . . . . . . . . . 8 . . . 5 . 50 41 Martial Activations . | . . . . . . . . . . . . . . . . . . . . . . . . . . . . . . . . . . . . Shielding Activations . | . . . . . . . . . . . . . . . . . . . . . . . . . . . . . . . . . . . . Robots Disrupted 2 | . . . . . . 1 . . . 1 . . . . . . . . . . . . . . . . . . . . . . . . . Combat Hostiles 2 | . . . . . . 1 . . . 1 . . . . . . . . . . . . . . . . . . . . . . . . . Robots Corrupted 33 | . 1 . . . . 1 1 1 9 2 . . 1 . . 1 . . . . . . . . . . . . . . . . . 11 5 Combat Hostiles 28 | . . . . . . 1 . 1 7 2 . . 1 . . . . . . . . . . . . . . . . . . . . 11 5 Parts Fried 111 | . 2 . . . . 10 12 7 28 5 . . 1 . . 2 . . . . 2 . . . . . . . 2 . . . . 31 9 Impact Corruptions 6 | . 1 . . . . . . . 4 . . . . . . . . . . . . . . . 1 . . . . . . . . . . Robots Melted 21 | . . . . . 1 . . . . . . . . 2 . 1 . . . 2 3 2 2 3 2 3 . . . . . . . . . Combat Hostiles 17 | . . . . . 1 . . . . . . . . . . . . . . 2 3 2 2 2 2 3 . . . . . . . . . Parts Melted 109 | . . 4 . . . . . . . . . . . 5 . 10 . 2 . 9 19 7 3 18 14 16 . . . 1 . . . 1 . Heat Transferred 29683 | . 224 666 . . 148 150 250 400 300 50 . . . 2750 . 4177 150 237 . 1359 3600 2993 1350 1850 2200 4890 185 481 444 296 . 148 . 335 50 Parts Sabotaged . | . . . . . . . . . . . . . . . . . . . . . . . . . . . . . . . . . . . . Parts Stolen 2 | . . . . . . . . . . . . . . . . . 2 . . . . . . . . . . . . . . . . . . Parts Stripped . | . . . . . . . . . . . . . . . . . . . . . . . . . . . . . . . . . . . . Power Chain Reactions 27 | . 2 . . . . 2 5 4 5 1 . . . . . 3 . . . . . . . . . . . . . . . . . 2 3 Alert | -11 -10 -10 -10 -9 -8 -8 -8 -8 -7 -7 -7 -7 -6 -6 -6 -6 -6 -6 -6 -5 -5 -5 -5 -5 -5 -4 -4 -4 -4 -3 -3 -3 -2 -1 -1 ------- Run | Yrd Mat Min Exi Min Mat Gar Mat Gar Fac Low Low Dat Pro Fac Was Fac Low Low Zio Pro Fac Ext Cet Arc Hub Fac Upp Upp War Pro Res DSF Res Acc Com Maximum Alert Level 4 | . . . . . 1 4 2 4 3 . . . . . . 2 . . . . . 2 . . . 1 . . . . . 2 1 3 3 Low Security (%) 48 | 100 100 100 . 100 26 2 . . . . . . . 100 100 62 . . . . 100 16 100 100 100 84 . . . . 100 31 94 38 . Level 1 17 | . . . . . 73 21 3 6 24 . . . . . . 29 . . . . . 76 . . . 15 . . . . . 21 5 14 4 Level 2 20 | . . . . . . 32 96 27 63 . . . . . . 7 . . . . . 7 . . . . . . . . . 47 . 10 53 Level 3 11 | . . . . . . 27 . 33 11 . . . . . . . . . . . . . . . . . . . . . . . . 36 42 Level 4 1 | . . . . . . 15 . 32 . . . . . . . . . . . . . . . . . . . . . . . . . . . Level 5 . | . . . . . . . . . . . . . . . . . . . . . . . . . . . . . . . . . . . . High Security . | . . . . . . . . . . . . . . . . . . . . . . . . . . . . . . . . . . . . Max Security . | . . . . . . . . . . . . . . . . . . . . . . . . . . . . . . . . . . . . Sterilizations 1 | . . . . . . . . . . . . . . . . . . . . . . . . . . . . . . . . 1 . . . Peak Influence 1334 | 10 143 67 . 95 359 1214 591 1334 778 . . . . 170 39 426 . . . . 146 501 149 48 159 355 . . . . 12 418 234 884 868 Initial 700 | . . 30 . . . 161 591 357 700 . . . . . 39 . . . . . . 67 143 . . 46 . . . . . 1 234 . 559 Average 279 | 1 65 15 . 18 245 672 479 878 510 . . . . 81 11 146 . . . . 45 275 93 9 24 90 . . . . . 262 41 414 556 Influence Increases 14378 | 10 351 231 . 105 730 1083 447 987 1120 396 70 . 491 624 . 704 . 70 . 230 486 1243 113 135 380 907 55 100 170 150 24 417 44 1325 1180 Destroy 0b10 Robot/C 8000 | . 260 160 . 80 440 480 240 480 600 320 60 . 420 340 . 280 . 60 . 180 240 620 80 80 180 500 40 80 140 120 . 180 . 740 600 Destroy 0b10 Robot/NC 600 | 10 10 10 . . 25 10 35 20 50 5 . . 5 40 . 85 . . . . 25 30 5 20 15 50 . 10 . . . 20 10 45 65 Destroy Leader 1588 | . 54 30 . 10 100 30 88 40 184 40 10 . 40 102 . 108 . 10 . 20 64 102 . . 42 164 . 10 . 30 . 30 4 140 136 Allied During Kill 427 | . . 16 . 14 27 . . 3 5 1 . . 11 2 . . . . . . . 328 20 . . . . . . . . . . . . Trap Triggered on 0b10 70 | . . . . . . . . . . . . . . 10 . . . . . . . . . . . . . . . . . . . 60 . Successful Hack 380 | . 18 . . . 5 14 7 7 56 . . . . 4 . 5 . . . . 29 7 . . 11 80 . . . . 12 . . 49 76 Disable Machine 615 | . . 15 . . 45 . . . 45 . . . . 45 . 135 . . . . 60 45 . 15 75 . . . . . . 15 . 15 105 Anti-Garrison Action 900 | . . . . . . 400 . 350 150 . . . . . . . . . . . . . . . . . . . . . . . . . . Destroy Structure 1348 | . 9 . . 1 28 149 32 27 30 . . . . 36 . 91 . . . . 68 96 8 20 42 98 . . . . 12 172 30 216 183 Partial Spotted 30 | . . . . . . . . . . . . . . 15 . . . . . . . . . . 15 . . . . . . . . . . Lose Combat Pursuer 420 | . . . . . 60 . 45 60 . 30 . . 15 30 . . . . . 30 . 15 . . . 15 15 . 30 . . . . 60 15 Influence Decreases 13509 | 10 272 310 . 105 482 117 1111 203 1677 879 351 13 491 511 113 288 416 70 . 230 348 1124 370 135 283 652 407 100 20 300 22 1 462 451 1185 Entered New Map 3191 | . . 49 . . . 87 623 193 634 289 57 13 . . 74 . 155 . . . . 71 114 . . 51 131 . . 150 . 1 184 . 315 Time Decay 8650 | 10 262 231 . 105 422 . 478 . 713 490 294 . 361 441 39 282 261 60 . 230 338 646 150 121 178 551 276 100 20 150 22 . 278 441 700 Lost Part 530 | . 10 30 . . . 30 10 10 10 60 . . 130 70 . 6 . 10 . . 10 10 . 14 50 50 . . . . . . . 10 10 Lost Ally 416 | . . . . . 60 . . . 20 40 . . . . . . . . . . . 180 106 . . . . . . . . . . . 10 Purge Threat 722 | . . . . . . . . . 300 . . . . . . . . . . . . 217 . . 55 . . . . . . . . . 150 Squads Dispatched 96 | . 1 . . . 5 . 1 . 16 . . . 1 9 . 9 . . . . 6 4 . . 3 11 . . . . 2 2 2 14 10 Investigation 6 | . 1 . . . . . . . 2 . . . . . . 2 . . . . . 1 . . . . . . . . . . . . . Extermination 43 | . . . . . . . . . 6 . . . . 5 . 6 . . . . 3 . . . 1 7 . . . . 2 . . 6 7 Reinforcement 30 | . . . . . 2 . 1 . 3 . . . . 3 . 1 . . . . 2 3 . . 1 3 . . . . . 2 2 5 2 Assault 6 | . . . . . . . . . 4 . . . 1 . . . . . . . . . . . . . . . . . . . . . 1 Garrison 11 | . . . . . 3 . . . 1 . . . . 1 . . . . . . 1 . . . 1 1 . . . . . . . 3 . Intercept . | . . . . . . . . . . . . . . . . . . . . . . . . . . . . . . . . . . . . Searches Triggered . | . . . . . . . . . . . . . . . . . . . . . . . . . . . . . . . . . . . . Unchained Authorized 1 | . . . . . . . . . . . . . . . . . . . . . . 1 . . . . . . . . . . . . . Construction Impeded 5 | . . . . . . . . . 1 . . . . . . . . . . . . 2 . . 1 . . . . . . . . 1 . Haulers Reinforced 4 | . . . . . . . . . . . . . . 1 . 1 . . . . 1 . . . . 1 . . . . . . . . . Active Scanning Responses . | . . . . . . . . . . . . . . . . . . . . . . . . . . . . . . . . . . . . Cargo Convoy Interrupts 1 | . . . . . . . . . 1 . . . . . . . . . . . . . . . . . . . . . . . . . . Stealth | -11 -10 -10 -10 -9 -8 -8 -8 -8 -7 -7 -7 -7 -6 -6 -6 -6 -6 -6 -6 -5 -5 -5 -5 -5 -5 -4 -4 -4 -4 -3 -3 -3 -2 -1 -1 --------- Run | Yrd Mat Min Exi Min Mat Gar Mat Gar Fac Low Low Dat Pro Fac Was Fac Low Low Zio Pro Fac Ext Cet Arc Hub Fac Upp Upp War Pro Res DSF Res Acc Com Distress Signals 45 | . 1 . . . 7 . 4 . 2 . . . . 2 . 1 . . . . 1 2 2 . . 1 . . . . . . 6 3 13 Communications Jammed 54 | . . . . . . . . . . . . . . . . . . . . . . . . . . . . . . . . . 1 30 23 Distress Signals 54 | . . . . . . . . . . . . . . . . . . . . . . . . . . . . . . . . . 1 30 23 Times Spotted 547 | . 17 8 . 3 39 25 26 25 37 21 3 . 25 23 6 37 5 3 . 7 17 26 5 10 15 34 3 4 12 5 1 7 6 43 49 Peak Tracking Total 8 | . 5 3 . 2 7 4 4 5 4 8 3 . 7 5 6 8 4 3 . 5 3 4 5 2 5 3 1 1 4 2 1 4 4 5 4 Tactical Retreats 23 | . . . . . 3 . 3 3 . 2 . . 1 2 . . . . . 1 . 1 . . . 1 1 . 2 . . . . 2 1 Traps | -11 -10 -10 -10 -9 -8 -8 -8 -8 -7 -7 -7 -7 -6 -6 -6 -6 -6 -6 -6 -5 -5 -5 -5 -5 -5 -4 -4 -4 -4 -3 -3 -3 -2 -1 -1 ------- Run | Yrd Mat Min Exi Min Mat Gar Mat Gar Fac Low Low Dat Pro Fac Was Fac Low Low Zio Pro Fac Ext Cet Arc Hub Fac Upp Upp War Pro Res DSF Res Acc Com Traps Triggered 39 | . 1 . . . . 7 . 9 4 . . . . 1 . 5 1 . . . . 1 . . . 4 . . . . 2 1 . 2 1 Indirectly 1 | . . . . . . . . . . . . . . . . . . . . . . . . . . . . . . . . . . 1 . Trap Hack Attempts . | . . . . . . . . . . . . . . . . . . . . . . . . . . . . . . . . . . . . Triggered . | . . . . . . . . . . . . . . . . . . . . . . . . . . . . . . . . . . . . Disarmed . | . . . . . . . . . . . . . . . . . . . . . . . . . . . . . . . . . . . . Reprogrammed 6 | . . . . . . . . . . . . . . . . . . . . . . . . . . . . . . . . . . 6 . Reused 7 | . . . . . . . . . . . . . . . . . . . . . . . . . . . . 1 . . . . . 6 . Traps Extracted . | . . . . . . . . . . . . . . . . . . . . . . . . . . . . . . . . . . . . Installed 3 | . . . . . . . . . . . 1 . . . . . . . . . . . . . . . . 2 . . . . . . . Triggered 8 | . . . . . . . . . . . . . . 1 . . . . . . . . . . . . . 1 . . . . . 6 . Most Traps Carried 2 | . . . . . . . . . . 1 1 . . . . . . . . . . . . . . . . 2 1 . . . . . . Machines | -11 -10 -10 -10 -9 -8 -8 -8 -8 -7 -7 -7 -7 -6 -6 -6 -6 -6 -6 -6 -5 -5 -5 -5 -5 -5 -4 -4 -4 -4 -3 -3 -3 -2 -1 -1 ---------- Run | Yrd Mat Min Exi Min Mat Gar Mat Gar Fac Low Low Dat Pro Fac Was Fac Low Low Zio Pro Fac Ext Cet Arc Hub Fac Upp Upp War Pro Res DSF Res Acc Com Machines Disabled 55 | . . 1 . . 3 7 . 4 4 . . . . 3 . 9 . . . . 4 4 . 1 5 . . . 1 . . 1 . 1 7 Max in Single Turn 4 | . . 1 . . 1 2 . 1 2 . . . . 1 . 4 . . . . 2 3 . 1 1 . . . 1 . . 1 . 1 1 Garrison Access 7 | . . . . . . . . . 2 . . . . 1 . . . . . . . . . . . 2 . . . . . . 2 . . Garrison Relay 9 | . . . . . . 5 . 4 . . . . . . . . . . . . . . . . . . . . . . . . . . . Phase Generator 1 | . . . . . . 1 . . . . . . . . . . . . . . . . . . . . . . . . . . . . . Network Hub 1 | . . . . . . . . . . . . . . . . . . . . . . . . . 1 . . . . . . . . . . Energy Cycler 1 | . . . . . . . . . . . . . . . . . . . . . . 1 . . . . . . . . . . . . . Machines Repaired . | . . . . . . . . . . . . . . . . . . . . . . . . . . . . . . . . . . . . Machines Dismantled 2 | . . . . . . . . . . . . . . . . . . . . . . . . . 1 . . . 1 . . . . . . Machines Sabotaged . | . . . . . . . . . . . . . . . . . . . . . . . . . . . . . . . . . . . . Overloaded Fab Kills . | . . . . . . . . . . . . . . . . . . . . . . . . . . . . . . . . . . . . Hacking | -11 -10 -10 -10 -9 -8 -8 -8 -8 -7 -7 -7 -7 -6 -6 -6 -6 -6 -6 -6 -5 -5 -5 -5 -5 -5 -4 -4 -4 -4 -3 -3 -3 -2 -1 -1 --------- Run | Yrd Mat Min Exi Min Mat Gar Mat Gar Fac Low Low Dat Pro Fac Was Fac Low Low Zio Pro Fac Ext Cet Arc Hub Fac Upp Upp War Pro Res DSF Res Acc Com Machines Accessed 118 | . 4 . 2 . 3 1 8 4 13 1 . 2 . 11 . 8 2 . . . 5 4 1 1 1 15 . . 11 . 4 . . 6 11 Terminals 68 | . 4 . . . 2 1 5 4 6 . . . . 5 . 7 . . . . 3 4 1 . 1 9 . . . . 2 . . 5 9 Fabricators . | . . . . . . . . . . . . . . . . . . . . . . . . . . . . . . . . . . . . Repair Stations 7 | . . . . . . . . . 3 . . . . 1 . . . . . . 1 . . . . . . . . . . . . 1 1 Recycling Units 9 | . . . . . . . . . 2 . . . . 2 . 1 . . . . . . . . . 2 . . . . 1 . . . 1 Scanalyzers 9 | . . . . . . . 2 . 1 . . . . 2 . . . . . . 1 . . . . 2 . . . . 1 . . . . Garrison Access 6 | . . . . . 1 . 1 . 1 . . . . 1 . . . . . . . . . . . 2 . . . . . . . . . Total Hacks 309 | . 14 . 2 . 11 1 21 5 30 1 . 21 . 19 . 12 6 . . . 15 6 2 2 7 61 . . 20 . 10 . . 16 27 Successful 168 | . 7 . 2 . 5 1 8 1 12 1 . 21 . 5 . 1 6 . . . 8 4 1 2 4 35 . . 20 . 2 . . 8 14 Failed 141 | . 7 . . . 6 . 13 4 18 . . . . 14 . 11 . . . . 7 2 1 . 3 26 . . . . 8 . . 8 13 Catastrophic 32 | . 2 . . . . . 1 3 4 . . . . 2 . 6 . . . . 1 2 1 . . 6 . . . . 2 . . . 2 Database Lockouts . | . . . . . . . . . . . . . . . . . . . . . . . . . . . . . . . . . . . . Manual 61 | . 10 . 1 . 2 . 4 . 5 . . . . 2 . 3 . . . . 4 . . . . 16 . . 1 . 1 . . 3 9 Terminals 189 | . 14 . . . 10 1 14 5 16 . . . . 10 . 10 . . . . 10 6 2 . 7 44 . . . . 5 . . 14 21 Fabricators . | . . . . . . . . . . . . . . . . . . . . . . . . . . . . . . . . . . . . Repair Stations 16 | . . . . . . . . . 8 . . . . 2 . . . . . . 2 . . . . . . . . . . . . 2 2 Recycling Units 18 | . . . . . . . . . 3 . . . . 3 . 2 . . . . . . . . . 4 . . . . 2 . . . 4 Scanalyzers 26 | . . . . . . . 5 . 2 . . . . 2 . . . . . . 3 . . . . 11 . . . . 3 . . . . Garrison Access 8 | . . . . . 1 . 2 . 1 . . . . 2 . . . . . . . . . . . 2 . . . . . . . . . Terminal Hacks 118 | . 4 . 2 . 3 1 2 1 4 1 . 21 . 4 . . 6 . . . 4 4 1 2 4 16 . . 20 . 1 . . 7 10 Record 28 | . . . 1 . . . . . . . . . . . . . 5 . . . . . 1 2 . 1 . . 18 . . . . . . Part Schematic 13 | . . . . . . . . . . . . 13 . . . . . . . . . . . . . . . . . . . . . . . Robot Schematic 5 | . . . . . . . . . . . . 5 . . . . . . . . . . . . . . . . . . . . . . . Prototype ID Bank 10 | . 1 . . . 2 . . . 1 . . 3 . . . . . . . . 1 . . . . 2 . . . . . . . . . Open Door 7 | . . . . . . . . 1 . 1 . . . . . . 1 . . . . 1 . . . . . . 2 . . . . . 1 Open DSF 1 | . . . . . . . . . . . . . . . . . . . . . . . . . . . . . . . 1 . . . . Level Access Points 1 | . 1 . . . . . . . . . . . . . . . . . . . . . . . . . . . . . . . . . . Branch Access Points 2 | . . . . . . . . . . . . . . . . . . . . . . . . . . 1 . . . . . . . 1 . Emergency Access Points 6 | . 1 . . . . 1 . . . . . . . . . . . . . . . . . . 1 1 . . . . . . . 1 1 Terminal Index 2 | . . . . . . . . . . . . . . . . . . . . . . . . . . . . . . . . . . 1 1 Alert Level 11 | . . . . . . . . . 1 . . . . 2 . . . . . . 1 1 . . 1 3 . . . . . . . . 2 Unreport Threat 6 | . . . . . . . . . 2 . . . . . . . . . . . . 2 . . 1 . . . . . . . . . 1 Locate Traps 10 | . 1 . . . . . 1 . . . . . . 1 . . . . . . 1 . . . . 3 . . . . . . . . 3 Reprogram Traps 1 | . . . . . . . . . . . . . . . . . . . . . . . . . . . . . . . . . . 1 . Patrol Status 1 | . . . . . . . . . . . . . . . . . . . . . . . . . 1 . . . . . . . . . . Transport Status 1 | . . . . . . . . . . . . . . 1 . . . . . . . . . . . . . . . . . . . . . Reinforcement Status 1 | . . . . . . . . . . . . . . . . . . . . . . . . . . . . . . . . . . 1 . Recall Reinforcements 3 | . . . . . . . . . . . . . . . . . . . . . . . . . . 1 . . . . . . . 2 . Hauler Manifests 2 | . . . . . . . . . . . . . . . . . . . . . 1 . . . . 1 . . . . . . . . . Registered Components 1 | . . . . . . . . . . . . . . . . . . . . . . . . . . 1 . . . . . . . . . Zone Layout 4 | . . . . . 1 . 1 . . . . . . . . . . . . . . . . . . 2 . . . . . . . . . Proto ID Catalog 1 | . . . 1 . . . . . . . . . . . . . . . . . . . . . . . . . . . . . . . . Disengage Seal 1 | . . . . . . . . . . . . . . . . . . . . . . . . . . . . . . . . . . . 1 Fabricator Hacks . | . . . . . . . . . . . . . . . . . . . . . . . . . . . . . . . . . . . . Repair Station Hacks 8 | . . . . . . . . . 5 . . . . . . . . . . . 1 . . . . . . . . . . . . . 2 Scan Component 5 | . . . . . . . . . 3 . . . . . . . . . . . 1 . . . . . . . . . . . . . 1 Repair 3 | . . . . . . . . . 2 . . . . . . . . . . . . . . . . . . . . . . . . . 1 Recycling Unit Hacks 2 | . . . . . . . . . . . . . . . . . . . . . . . . . . 1 . . . . . . . . 1 Retrieve Matter 2 | . . . . . . . . . . . . . . . . . . . . . . . . . . 1 . . . . . . . . 1 Scanalyzer 17 | . . . . . . . 4 . 1 . . . . . . . . . . . 2 . . . . 9 . . . . 1 . . . . Insert Component 2 | . . . . . . . . . . . . . . . . . . . . . . . . . . 1 . . . . 1 . . . . Retrieve Study 15 | . . . . . . . 4 . 1 . . . . . . . . . . . 2 . . . . 8 . . . . . . . . . Garrison Access Hacks 6 | . . . . . 1 . 1 . 1 . . . . 1 . . . . . . . . . . . 2 . . . . . . . . . Unlock Access 2 | . . . . . 1 . 1 . . . . . . . . . . . . . . . . . . . . . . . . . . . . Seal Access 4 | . . . . . . . . . 1 . . . . 1 . . . . . . . . . . . 2 . . . . . . . . . Unauthorized Hacks 17 | . 3 . . . 1 . 1 . 1 . . . . . . 1 . . . . 1 . . . . 7 . . . . . . . 1 1 Terminals 17 | . 3 . . . 1 . 1 . 1 . . . . . . 1 . . . . 1 . . . . 7 . . . . . . . 1 1 Assimilate 1 | . . . . . . . 1 . . . . . . . . . . . . . . . . . . . . . . . . . . . . Botnet 15 | . 3 . . . 1 . . . 1 . . . . . . 1 . . . . 1 . . . . 6 . . . . . . . 1 1 Operators 1 | . . . . . . . . . . . . . . . . . . . . . . . . . . 1 . . . . . . . . . Fabricators . | . . . . . . . . . . . . . . . . . . . . . . . . . . . . . . . . . . . . Repair Stations . | . . . . . . . . . . . . . . . . . . . . . . . . . . . . . . . . . . . . Recycling Units . | . . . . . . . . . . . . . . . . . . . . . . . . . . . . . . . . . . . . Scanalyzers . | . . . . . . . . . . . . . . . . . . . . . . . . . . . . . . . . . . . . Garrison Access . | . . . . . . . . . . . . . . . . . . . . . . . . . . . . . . . . . . . . Data Cores Recovered 5 | . . . . . . . 2 . 2 . . . . . . . . . . . . . . . . 1 . . . . . . . . . Used 1 | . . . . . . . 1 . . . . . . . . . . . . . . . . . . . . . . . . . . . . Hacking Detections 89 | . 4 . . . 3 1 8 4 12 . . . . 10 . 8 . . . . 5 3 1 . 1 12 . . . . 3 . . 6 8 Full Trace Events 3 | . . . . . . . . 1 1 . . . . . . 1 . . . . . . . . . . . . . . . . . . . Feedback Events 2 | . . . . . . . . . 1 . . . . . . 1 . . . . . . . . . . . . . . . . . . . Corruption 2 | . . . . . . . . . 1 . . . . . . 1 . . . . . . . . . . . . . . . . . . . Feedback Blocked . | . . . . . . . . . . . . . . . . . . . . . . . . . . . . . . . . . . . . Robot Schematics Acquired 7 | . . . . . . . . . . . . 5 . . . . . . 2 . . . . . . . . . . . . . . . . Robots Built . | . . . . . . . . . . . . . . . . . . . . . . . . . . . . . . . . . . . . Authchips . | . . . . . . . . . . . . . . . . . . . . . . . . . . . . . . . . . . . . Time . | . . . . . . . . . . . . . . . . . . . . . . . . . . . . . . . . . . . . Total Robot Build Rating . | . . . . . . . . . . . . . . . . . . . . . . . . . . . . . . . . . . . . Part Schematics Acquired 27 | . . . . . . . . . . . . 13 . . . . . . 14 . . . . . . . . . . . . . . . . Parts Built . | . . . . . . . . . . . . . . . . . . . . . . . . . . . . . . . . . . . . Authchips . | . . . . . . . . . . . . . . . . . . . . . . . . . . . . . . . . . . . . Time . | . . . . . . . . . . . . . . . . . . . . . . . . . . . . . . . . . . . . Total Part Build Rating . | . . . . . . . . . . . . . . . . . . . . . . . . . . . . . . . . . . . . Part Studies Acquired 15 | . . . . . . . 4 . 1 . . . . . . . . . . . 2 . . . . 8 . . . . . . . . . Parts Repaired 3 | . . . . . . . . . 2 . . . . . . . . . . . . . . . . . . . . . . . . . 1 Time 94 | . . . . . . . . . 69 . . . . . . . . . . . . . . . . . . . . . . . . . 25 Parts Recycled . | . . . . . . . . . . . . . . . . . . . . . . . . . . . . . . . . . . . . Recycled Matter . | . . . . . . . . . . . . . . . . . . . . . . . . . . . . . . . . . . . . Retrieved Matter . | . . . . . . . . . . . . . . . . . . . . . . . . . . . . . . . . . . . . Retrieved Components . | . . . . . . . . . . . . . . . . . . . . . . . . . . . . . . . . . . . . Parts Scanalyzed 1 | . . . . . . . . . . . . . . . . . . . . . . . . . . . . . . . 1 . . . . Part Schematics Acquired . | . . . . . . . . . . . . . . . . . . . . . . . . . . . . . . . . . . . . Parts Damaged . | . . . . . . . . . . . . . . . . . . . . . . . . . . . . . . . . . . . . Bothacking | -11 -10 -10 -10 -9 -8 -8 -8 -8 -7 -7 -7 -7 -6 -6 -6 -6 -6 -6 -6 -5 -5 -5 -5 -5 -5 -4 -4 -4 -4 -3 -3 -3 -2 -1 -1 ------------ Run | Yrd Mat Min Exi Min Mat Gar Mat Gar Fac Low Low Dat Pro Fac Was Fac Low Low Zio Pro Fac Ext Cet Arc Hub Fac Upp Upp War Pro Res DSF Res Acc Com Used RIF Installer . | . . . . . . . . . . . . . . . . . . . . . . . . . . . . . . . . . . . . Robots Hacked . | . . . . . . . . . . . . . . . . . . . . . . . . . . . . . . . . . . . . Non-combat . | . . . . . . . . . . . . . . . . . . . . . . . . . . . . . . . . . . . . Combat . | . . . . . . . . . . . . . . . . . . . . . . . . . . . . . . . . . . . . Robot Hacks Applied . | . . . . . . . . . . . . . . . . . . . . . . . . . . . . . . . . . . . . Relay Couplers Released 45 | . . . . . . 18 . 20 6 . . . . . . . . . . . . . . . . . . . . . . . 1 . . Machine Destruction 41 | . . . . . . 18 . 16 6 . . . . . . . . . . . . . . . . . . . . . . . 1 . . Programmers 4 | . . . . . . . . 4 . . . . . . . . . . . . . . . . . . . . . . . . . . . Fabnet Peak Effective % . | . . . . . . . . . . . . . . . . . . . . . . . . . . . . . . . . . . . . Robots Rewired 19 | . . . . . . . . 2 . 2 . . 2 . . . . . . . . 13 . . . . . . . . . . . . . Allies Hacked . | . . . . . . . . . . . . . . . . . . . . . . . . . . . . . . . . . . . . Hacks Repelled . | . . . . . . . . . . . . . . . . . . . . . . . . . . . . . . . . . . . . Allies | -11 -10 -10 -10 -9 -8 -8 -8 -8 -7 -7 -7 -7 -6 -6 -6 -6 -6 -6 -6 -5 -5 -5 -5 -5 -5 -4 -4 -4 -4 -3 -3 -3 -2 -1 -1 -------- Run | Yrd Mat Min Exi Min Mat Gar Mat Gar Fac Low Low Dat Pro Fac Was Fac Low Low Zio Pro Fac Ext Cet Arc Hub Fac Upp Upp War Pro Res DSF Res Acc Com Total Allies 30 | . . 5 . . . . . 2 . 2 . . 3 . . . . . . . . 18 . . . . . . . . . . . . . Largest Group 13 | . . 5 5 3 3 . . 2 2 1 . . 3 1 . . . . . . . 13 6 . . . . . . . . . . . . Highest-Rated Group 395 | . . 85 85 40 40 . . 59 59 20 . . 155 29 . . . . . . . 395 160 . . . . . . . . . . . . Highest-Rated Ally 96 | . . 31 31 16 16 . . 39 39 20 . . 96 29 . . . . . . . 39 34 . . . . . . . . . . . . Initial Warlord ECA Mod 18 | . . . . . . . 8 8 13 13 13 13 12 12 12 12 12 12 12 11 11 11 11 11 11 10 10 10 10 9 9 9 18 17 17 Total Orders 20 | . . . . 1 2 . . . 9 . . . . 6 . . . . . . . 2 . . . . . . . . . . . . . STAY 9 | . . . . . 1 . . . 5 . . . . 2 . . . . . . . 1 . . . . . . . . . . . . . ROAM 1 | . . . . . . . . . . . . . . 1 . . . . . . . . . . . . . . . . . . . . . FOLLOW 9 | . . . . 1 1 . . . 3 . . . . 3 . . . . . . . 1 . . . . . . . . . . . . . GUARD 1 | . . . . . . . . . 1 . . . . . . . . . . . . . . . . . . . . . . . . . . Ally Attacks 276 | . . 6 . 7 33 . . 2 3 14 . . 27 3 . . . . . . . 169 12 . . . . . . . . . . . . Total Damage 4225 | . . 84 . 77 356 . . 19 41 203 . . 933 57 . . . . . . . 2253 202 . . . . . . . . . . . . Kills 42 | . . 1 . 4 6 . . . . . . . 1 1 . . . . . . . 28 1 . . . . . . . . . . . . Allies Corrupted 2 | . . . . . . . . . 1 . . . . . . . . . . . . 1 . . . . . . . . . . . . . Allies Melted 2 | . . . . . . . . . . . . . . 1 . . . . . . . . . . . . . . 1 . . . . . . Intel | -11 -10 -10 -10 -9 -8 -8 -8 -8 -7 -7 -7 -7 -6 -6 -6 -6 -6 -6 -6 -5 -5 -5 -5 -5 -5 -4 -4 -4 -4 -3 -3 -3 -2 -1 -1 ------- Run | Yrd Mat Min Exi Min Mat Gar Mat Gar Fac Low Low Dat Pro Fac Was Fac Low Low Zio Pro Fac Ext Cet Arc Hub Fac Upp Upp War Pro Res DSF Res Acc Com Active Infowar (turns) 24236 | 13 627 786 390 529 634 . 2 . . . . . 1 652 . 1573 820 896 1372 1712 1197 . 1 . . 1189 1096 1499 1282 1001 627 86 1493 2098 2660 Optics 1454 | . . . . . . . . . . . . . . 652 . 647 . . . . . . 1 . . . . . . . 148 . 6 . . Sensors 75 | . . . . . . . . . . . . . . 75 . . . . . . . . . . . . . . . . . . . . . A.S.S. 27 | . . . . . . . . . . . . . . . . . . . . . . . . . . . . . . . . . . . 27 IFF 4937 | . . . . . . . . . . . . . . . . . 820 896 1372 1712 137 . . . . . . . . . . . . . . Terrain 7607 | . . . . . . . . . . . . . . . . . . . . . . . . . . 120 705 1213 1188 999 565 . 1475 1338 4 Traps 1197 | . . . . . . . . . . . . . . . . . . . . . 1197 . . . . . . . . . . . . . . Seismic 7634 | 13 627 786 390 529 142 . . . . . . . . . . . 713 . . . . . . . . 2 1060 1251 1196 924 1 . . . . T.N.C. 494 | . . . . . 492 . 2 . . . . . . . . . . . . . . . . . . . . . . . . . . . . Machine Analysis 926 | . . . . . . . . . . . . . . . . 926 . . . . . . . . . . . . . . . . . . . Cloaking 4327 | . . . . . . . . . . . . . . . . . . . . . . . . . . . . . 2 . 11 . 1489 1515 1310 Jamming 12978 | . . . . . . . . . . . . . 1 . . . . . . . . . . . . 1189 1096 1499 1258 1001 627 86 1492 2097 2632 ECM 2 | . . . . . . . . . . . . . . . . . . . . . . . . . . . . . . . . . . 2 . Robot Analysis Total . | . . . . . . . . . . . . . . . . . . . . . . . . . . . . . . . . . . . . Derelict Logs Recovered 14 | . . 1 . 1 . . . . . 1 2 . 2 . . . 1 . 2 2 . . . . . . 1 1 . . . . . . . Drone Launches 1 | . . . . . . . . . . . . . . . . . . . . . . . . . . . . . . . . . . . 1 Drone Recoveries . | . . . . . . . . . . . . . . . . . . . . . . . . . . . . . . . . . . . . Exploration | -11 -10 -10 -10 -9 -8 -8 -8 -8 -7 -7 -7 -7 -6 -6 -6 -6 -6 -6 -6 -5 -5 -5 -5 -5 -5 -4 -4 -4 -4 -3 -3 -3 -2 -1 -1 ------------- Run | Yrd Mat Min Exi Min Mat Gar Mat Gar Fac Low Low Dat Pro Fac Was Fac Low Low Zio Pro Fac Ext Cet Arc Hub Fac Upp Upp War Pro Res DSF Res Acc Com Turns Passed 48304 | 87 744 1013 390 529 1036 1541 1226 1360 3245 1297 646 97 1374 2684 165 3422 822 897 1372 1740 1381 2553 313 408 727 3448 1096 1499 1282 1001 627 309 1494 2098 4381 Spaces Moved 26946 | 35 364 553 262 373 565 887 792 774 2069 807 480 79 810 1401 152 1875 467 492 929 905 656 1262 142 124 277 1844 589 880 714 600 316 138 946 1027 2360 Core 184 | 2 . . . . . . . . . . . . 1 . 79 102 . . . . . . . . . . . . . . . . . . . Treads 9362 | 33 364 553 113 . . . . . . . . . . . . . . . . . . . . . . 729 589 880 714 600 316 138 946 1027 2360 Legs 889 | . . . . . . . . . . . . . . . . 889 . . . . . . . . . . . . . . . . . . . Wheels 16511 | . . . 149 373 565 887 792 774 2069 807 480 79 809 1401 73 884 467 492 929 905 656 1262 142 124 277 1115 . . . . . . . . . Hover . | . . . . . . . . . . . . . . . . . . . . . . . . . . . . . . . . . . . . Flight . | . . . . . . . . . . . . . . . . . . . . . . . . . . . . . . . . . . . . Fastest Speed 50 | 50 160 160 135 135 116 130 115 115 115 130 130 115 115 130 50 50 145 145 130 145 155 165 165 165 150 101 152 152 152 152 152 145 145 145 150 Average Speed 144 | 153 160 160 145 135 136 130 122 119 129 130 130 116 138 151 97 134 156 145 143 153 166 165 165 165 166 142 152 152 152 152 152 149 145 147 150 Slowest Speed 1600 | 160 160 160 160 135 150 150 130 130 130 130 130 130 1600 225 1400 190 195 145 145 160 225 165 165 165 225 225 152 152 152 152 152 166 145 150 150 Overloaded Moves . | . . . . . . . . . . . . . . . . . . . . . . . . . . . . . . . . . . . . Propulsion Burnouts . | . . . . . . . . . . . . . . . . . . . . . . . . . . . . . . . . . . . . Robots Hopped 2 | . . . . . . . . . . . . . . . . . . . 2 . . . . . . . . . . . . . . . . Potential Cave-ins 13 | . . . . . . . . . . . . . . . . . 7 . . . . . . . 4 . . . . . . . 2 . . Cave-ins Triggered 2 | . . . . . . . . . . . . . . . . 1 1 . . . . . . . . . . . . . . . . . . Exploration Rate (%) 62 | 3 54 95 68 81 47 89 61 74 44 80 68 68 90 35 79 52 71 65 83 91 12 98 63 73 27 40 67 79 90 74 9 92 37 29 75 Regions Visited 35 Branch Regions 20 Pre-discovered Areas 8 | . . . 1 1 . . . . . 2 . . 1 . . . 1 . 1 . . . . . . . . 1 . . . . . . . Known Exits Taken 10 | . . . . . 1 . 1 . 1 . . . . . . . . . 1 1 1 . . . . 1 . . . . 1 . 1 1 . Unknown Exits Taken 20 | 1 1 1 1 1 . . . . . 1 1 1 1 . . 1 1 1 . . . 1 1 1 1 . 1 1 1 1 . . . . . Scrap Searched 30 | . . 1 . 3 . . . . . 2 2 . 2 . . . 2 8 5 2 . . . . . . 1 1 . 1 . . . . . Spaces Dug 245 | . . . . 1 . 2 5 5 6 3 3 . . 26 . 29 15 2 . 20 8 . . . 19 30 8 3 1 4 6 1 9 19 20 Terrain Destroyed 902 | . 8 . . 1 28 75 28 14 29 18 33 . 22 39 . 91 17 2 . 35 37 27 2 13 32 51 11 13 7 8 6 100 11 81 63 Melee 21 | . . . . 1 . 2 5 5 6 . . . . . . . . 2 . . . . . . . . . . . . . . . . . Projectile 459 | . . . . . 2 . . . 4 10 3 . 22 39 . 41 17 . . 30 18 8 2 13 32 51 11 13 7 8 6 3 11 57 51 AOE 422 | . 8 . . . 26 73 23 9 19 8 30 . . . . 50 . . . 5 19 19 . . . . . . . . . 97 . 24 12 Terrain Rammed . | . . . . . . . . . . . . . . . . . . . . . . . . . . . . . . . . . . . . Walls Destroyed . | . . . . . . . . . . . . . . . . . . . . . . . . . . . . . . . . . . . . Machines Disabled . | . . . . . . . . . . . . . . . . . . . . . . . . . . . . . . . . . . . . Actions | -11 -10 -10 -10 -9 -8 -8 -8 -8 -7 -7 -7 -7 -6 -6 -6 -6 -6 -6 -6 -5 -5 -5 -5 -5 -5 -4 -4 -4 -4 -3 -3 -3 -2 -1 -1 --------- Run | Yrd Mat Min Exi Min Mat Gar Mat Gar Fac Low Low Dat Pro Fac Was Fac Low Low Zio Pro Fac Ext Cet Arc Hub Fac Upp Upp War Pro Res DSF Res Acc Com Total 34246 | 58 469 633 271 396 762 1119 976 1050 2489 966 493 84 957 1822 170 2619 530 661 958 1203 873 1679 198 287 474 2518 766 997 868 657 448 227 1042 1442 3084 Wait 3923 | 3 40 45 . 4 52 36 102 68 235 61 2 . 58 240 7 471 21 147 2 251 89 189 18 132 148 374 146 68 79 37 106 17 11 247 417 Move 26907 | 34 363 552 261 372 565 885 791 773 2068 806 479 78 809 1401 151 1874 465 491 924 904 655 1261 141 123 277 1843 588 879 713 599 315 137 945 1026 2359 Hop 2 | . . . . . . . . . . . . . . . . . . . 2 . . . . . . . . . . . . . . . . Pick Up 348 | 7 11 4 4 11 21 18 11 7 19 9 1 . 4 24 2 44 3 6 5 1 17 10 5 3 1 32 . 5 10 . 1 13 8 4 27 Fast Attach 198 | 6 1 . . . 12 2 1 3 6 . . 3 5 15 . 32 4 . 4 . 12 2 3 3 1 25 . . 9 . 3 10 12 7 17 Attach 114 | 1 1 3 2 . 9 3 6 2 4 6 . . 9 7 3 3 4 3 1 . 6 1 . 3 . 8 . . 2 . 2 5 6 3 11 Detach 78 | . 1 . . . 12 2 3 1 3 . . . 2 3 2 7 . . 1 . 2 1 1 1 . 5 . . 2 . 3 2 10 3 11 Swap 555 | . 13 4 1 3 17 23 16 20 54 6 2 . 9 20 2 35 6 8 10 8 24 23 9 1 4 53 11 14 13 5 4 6 28 44 59 Drop 402 | . 8 1 3 4 31 18 10 7 19 3 1 3 1 25 3 38 4 1 8 1 30 19 10 3 1 41 1 4 17 . 1 24 12 10 40 Fire 1203 | 7 30 24 . . 27 41 29 40 57 41 7 . 47 87 . 106 22 3 . 38 38 26 11 18 38 121 20 25 15 16 13 13 10 98 135 Melee 131 | . 1 . . 2 16 47 7 47 8 . . . . . . . . 2 1 . . . . . . . . . . . . . . . . Ram 5 | . . . . . . . . 3 . . . . . . . 1 . . . . . . . . 1 . . . . . . . . . . Kick . | . . . . . . . . . . . . . . . . . . . . . . . . . . . . . . . . . . . . Crush . | . . . . . . . . . . . . . . . . . . . . . . . . . . . . . . . . . . . . Escape Stasis 149 | . . . . . . 44 . 64 16 . . . . . . 8 1 . . . . . . . . 16 . . . . . . . . . Rewire 217 | . . . . . . . . 15 . 34 . . 13 . . . . . . . . 147 . . . . . . . . . . . . 8 Trap 3 | . . . . . . . . . . . 1 . . . . . . . . . . . . . . . . 2 . . . . . . . Miscellaneous 11 | . . . . . . . . . . . . . . . . . . . . . . . . . 3 . . . 8 . . . . . . Route ------- -11/Scrapyard -10/Materials (discovered 4 exits: *Mat x3 / [*Min]) -10/Mines (discovered 3 exits: *Mat / *Exi / [*Sub]) -10/Exiles (discovered 2 exits: [*Min x2]) -9/Mines -8/Materials (discovered 2 exits: Fac / Gar) -8/Garrison (discovered 3 exits: *Mat x3) -8/Materials (discovered 3 exits: *Fac x2 / Gar) -8/Garrison (discovered 3 exits: *Fac x3) -7/Factory -7/Lower Caves -7/Lower Caves -7/Data Miner -6/Proximity Caves -6/Factory (discovered 3 exits: Fac / *Low x2) -6/Waste -6/Factory (discovered 4 exits: *Fac x2 / *Low x2) -6/Lower Caves -6/Lower Caves (discovered 2 exits: *Fac / [*Zio]) -6/Zion -5/Proximity Caves -5/Factory (discovered 2 exits: *Upp / *Ext) -5/Extension (discovered 3 exits: *Fac x2 / *Cet) -5/Cetus -5/Archives (discovered 2 exits: *Hub x2) -5/Hub_04(d) -4/Factory (discovered 3 exits: *Upp x2 / Arm) -4/Upper Caves -4/Upper Caves -4/Warlord -3/Proximity Caves -3/Research -3/DSF -2/Research (discovered 3 exits: *Acc x2 / [*Qua]) -1/Access -1/Command (discovered 2 exits: *Sur x2) 0b11 Command History --------- Turn | Location | Event 2 | -11/Scrapyard | Met Revision 17 52 | -11/Scrapyard | Discovered new exit (range 12) 88 | -11/Scrapyard | Entered Materials 308 | -10/Materials | Build established: Mutant 321 | -10/Materials | Discovered new exit (range 6) 521 | -10/Materials | Identified exit to Materials 832 | -10/Materials | Entered Mines 869 | -10/Mines | Discovered new exit (range 9) 997 | -10/Mines | Deemed a non-threat by the Exiles lab entrance 1131 | -10/Mines | Learned location of 1 exit from Materials 1133 | -10/Mines | Discovered exit to Materials (range 12) 1500 | -10/Mines | Assisted by bots powering up and referring to "LRC-V3" 1818 | -10/Mines | Discovered new exit (range 5) 1845 | -10/Mines | Entered Exiles 1845 | -10/Exiles | Accompanied by 5 allies 1866 | -10/Exiles | Discovered new exit (range 15) 1875 | -10/Exiles | Led the pair of lost Derelicts to a safe place 1894 | -10/Exiles | Met 8R-AWN 1921 | -10/Exiles | Met EX-HEX 1966 | -10/Exiles | Met EX-BIN 1983 | -10/Exiles | Aligned with FarCom system 1985 | -10/Exiles | Given EX-Vault access code 2022 | -10/Exiles | Opened EX-Vault 2037 | -10/Exiles | Found XL Autogun Array 2065 | -10/Exiles | Warned to stay clear of 0b10 Research branches 2107 | -10/Exiles | Met EX-DEC 2127 | -10/Exiles | Learned location of Zion (-6) 2215 | -10/Exiles | Discovered new exit (range 15) 2235 | -10/Exiles | Left Exiles lab with XL Autogun Array 2235 | -10/Exiles | Entered Mines 2235 | -9/Mines | Accompanied by 3 allies 2262 | -9/Mines | Met a Derelict bent on vengeance 2362 | -9/Mines | Discovered new exit (range 11) 2505 | -9/Mines | Found DCF Scrap (15 items) 2584 | -9/Mines | Learned location of Recycling (-9) 2764 | -9/Mines | Entered Materials 2764 | -8/Materials | Accompanied by 3 allies 2764 | -8/Materials | Evolved 4 slots: Propulsion x1, Utility x2, Weapon x1 2765 | -8/Materials | Identified exit to Factory 3001 | -8/Materials | Garrison activated, responded to threat 3020 | -8/Materials | Lost 3 allies 3074 | -8/Materials | Destroyed 7 combat bots 3800 | -8/Materials | Identified exit to Garrison 3800 | -8/Materials | Entered Garrison 3830 | -8/Garrison | Triggered checkpoint 3919 | -8/Garrison | Garrison Relay disabled 4295 | -8/Garrison | Discovered new exit (range 10) 4420 | -8/Garrison | Triggered checkpoint 4474 | -8/Garrison | Garrison Relay disabled 4560 | -8/Garrison | Triggered checkpoint 4569 | -8/Garrison | Triggered checkpoint 4676 | -8/Garrison | Triggered checkpoint 4683 | -8/Garrison | Garrison Relay disabled 4906 | -8/Garrison | Discovered new exit (range 11) 4908 | -8/Garrison | Triggered checkpoint 4978 | -8/Garrison | Triggered checkpoint 5048 | -8/Garrison | Garrison Relay disabled 5071 | -8/Garrison | Discovered new exit (range 3) 5107 | -8/Garrison | Garrison Relay disabled 5222 | -8/Garrison | Phase Generator disabled 5231 | -8/Garrison | Attempted to access garrison exit controls, blocked by remote lockdown 5341 | -8/Garrison | Entered Materials 5903 | -8/Materials | Discovered exit to Factory (range 4) 6451 | -8/Materials | Build established: Skirmisher 6453 | -8/Materials | Discovered exit to Factory (range 15) 6519 | -8/Materials | Identified exit to Garrison 6567 | -8/Materials | Entered Garrison 6683 | -8/Garrison | Triggered checkpoint 6757 | -8/Garrison | Garrison Relay disabled 6884 | -8/Garrison | Triggered checkpoint 6948 | -8/Garrison | Discovered exit to Factory (range 12) 6975 | -8/Garrison | Triggered checkpoint 7029 | -8/Garrison | Garrison Relay disabled 7039 | -8/Garrison | Triggered checkpoint 7098 | -8/Garrison | Build established: Tank 7105 | -8/Garrison | Triggered checkpoint 7143 | -8/Garrison | Triggered checkpoint 7189 | -8/Garrison | Triggered checkpoint 7208 | -8/Garrison | Core integrity fell below 50% 7233 | -8/Garrison | Garrison Relay disabled 7257 | -8/Garrison | Discovered exit to Factory (range 12) 7459 | -8/Garrison | Triggered checkpoint 7481 | -8/Garrison | Garrison Relay disabled 7506 | -8/Garrison | Discovered exit to Factory (range 11) 7632 | -8/Garrison | Build established: Mutant 7927 | -8/Garrison | Entered Factory 7927 | -7/Factory | Accompanied by 2 allies 7927 | -7/Factory | Evolved 2 slots: Power x1, Utility x1 8114 | -7/Factory | Build established: Tank 8327 | -7/Factory | First assault squad dispatched 8541 | -7/Factory | P-60 Hacker assimilated allied AF-TEP(h) 8805 | -7/Factory | Discovered new exit (range 7) 8861 | -7/Factory | Identified exit to Lower Caves 9094 | -7/Factory | Cargo convoy interrupted 9574 | -7/Factory | Garrison activated, responded to threat 9741 | -7/Factory | Destroyed 9 combat bots 9876 | -7/Factory | Build established: Scientist-Tank 10460 | -7/Factory | Found Prototype Launcher 10460 | -7/Factory | Identified Rocket Array 10563 | -7/Factory | Repaired Broken Arm. Huge Wheel+ 10844 | -7/Factory | Repaired Corrupted Adv. Cooling System 11091 | -7/Factory | Build established: Mutant 11172 | -7/Factory | Entered Lower Caves 11212 | -7/Lower Caves | Spotted B-75 Beast 11226 | -7/Lower Caves | Destroyed 7 combat bots 11233 | -7/Lower Caves | Destroyed B-75 Beast 11301 | -7/Lower Caves | Met a Warlord Commander 11302 | -7/Lower Caves | Learned location of Warlord (-4) 11303 | -7/Lower Caves | Warlord Commander delivered Encrypted Comm Array 11308 | -7/Lower Caves | Found Encrypted Comm Array 11426 | -7/Lower Caves | Build established: Scientist-Tank 11694 | -7/Lower Caves | Attracted the attention of an 0b10 outpost 11750 | -7/Lower Caves | Lost 4 parts (1u3w) 12008 | -7/Lower Caves | Build established: Tank 12440 | -7/Lower Caves | Discovered new exit (range 16) 12469 | -7/Lower Caves | Entered another Lower Caves area 12493 | -7/Lower Caves | Learned Factory trap positions 13016 | -7/Lower Caves | Discovered new exit (range 11) 13022 | -7/Lower Caves | Learned location of 1 exit from Factory 13115 | -7/Lower Caves | Entered Data Miner 13115 | -7/Data Miner | Discovered new exit (range 6) 13140 | -7/Data Miner | Met Data Miner 13178 | -7/Data Miner | Received God Mode back door access code from Data Miner 13212 | -7/Data Miner | Entered Proximity Caves 13271 | -6/Proximity Caves | Ambushed by research squad 13569 | -6/Proximity Caves | Spotted B-75 Beast 13766 | -6/Proximity Caves | Attracted the attention of an 0b10 checkpoint 13872 | -6/Proximity Caves | Attracted the attention of an 0b10 outpost 13918 | -6/Proximity Caves | Core integrity fell below 50% 13962 | -6/Proximity Caves | Escorted by Enhanced Grunt 13976 | -6/Proximity Caves | Destroyed 10 combat bots 13986 | -6/Proximity Caves | Lost 8 parts (2n4u2w) 14256 | -6/Proximity Caves | Build established: Mutant 14428 | -6/Proximity Caves | Destroyed B-75 Beast 14510 | -6/Proximity Caves | Discovered new exit (range 12) 14586 | -6/Proximity Caves | Entered Factory 14586 | -6/Factory | Accompanied by 1 ally 14586 | -6/Factory | Evolved 2 slots: Propulsion x1, Utility x1 14587 | -6/Factory | Identified exit to Factory 14588 | -6/Factory | Loaded intel: 105 trap records 14771 | -6/Factory | Discovered new exit (range 22) 15250 | -6/Factory | Build established: Gunner 15380 | -6/Factory | Found Prototype Launcher 15381 | -6/Factory | Lost 3 parts (1n1u1w) 15393 | -6/Factory | Destroyed 7 combat bots 15701 | -6/Factory | Discovered new exit (range 15) 16132 | -6/Factory | Build established: Scavenger-Gunner 16491 | -6/Factory | Garrison activated, responded to threat 17036 | -6/Factory | Build established: Skirmisher 17270 | -6/Factory | Sucked down chute 17270 | -6/Factory | Entered Waste 17285 | -6/Waste | EMP discharged 17285 | -6/Waste | Spotted C-40 Crusher 17297 | -6/Waste | Spotted C-40 Crusher 17299 | -6/Waste | Spotted C-40 Crusher 17313 | -6/Waste | Spotted C-40 Crusher 17364 | -6/Waste | Crushed by Compactor (1 part destroyed, 1 dropped) 17365 | -6/Waste | Spotted C-40 Crusher 17365 | -6/Waste | Spotted C-40 Crusher 17367 | -6/Waste | Crushed by Compactor (1 part destroyed, 2 dropped) 17376 | -6/Waste | Crushed by Compactor (1 part destroyed, 1 dropped) 17379 | -6/Waste | Crushed by Compactor (1 part destroyed, 2 dropped) 17382 | -6/Waste | Crushed by Compactor (1 part destroyed, 1 dropped) 17385 | -6/Waste | EMP discharged 17385 | -6/Waste | System corruption reached 10% 17385 | -6/Waste | Crushed by Compactor (1 part destroyed) 17416 | -6/Waste | Lost 6 parts (1p2n2u1w) 17427 | -6/Waste | Discovered new exit (range 15) 17435 | -6/Waste | Entered Factory 17667 | -6/Factory | Build established: Mutant 17791 | -6/Factory | Discovered new exit (range 17) 18109 | -6/Factory | Crushed by falling debris 18273 | -6/Factory | Build established: Skirmisher 18460 | -6/Factory | Discovered exit to Factory (range 14) 18496 | -6/Factory | Discovered exit to Factory (range 14) 18813 | -6/Factory | Found Prototype Launcher 18813 | -6/Factory | Identified Scatter Rocket Array 19021 | -6/Factory | Core integrity fell below 50% 19307 | -6/Factory | Build established: Scavenger-Skirmisher 19816 | -6/Factory | Build established: Tank 20058 | -6/Factory | Discovered new exit (range 12) 20221 | -6/Factory | Build established: Skirmisher 20857 | -6/Factory | Entered Lower Caves 20987 | -6/Lower Caves | Entered an active Warlord outpost 21002 | -6/Lower Caves | Learned 8 Research zone layouts 21002 | -6/Lower Caves | Learned Extension emergency access door positions 21305 | -6/Lower Caves | Build established: Tank 21574 | -6/Lower Caves | Crushed by falling debris 21575 | -6/Lower Caves | System corruption reached 30% 21605 | -6/Lower Caves | Lost 3 parts (1p1n1u) 21660 | -6/Lower Caves | Discovered new exit (range 13) 21667 | -6/Lower Caves | Attracted the attention of an 0b10 outpost 21679 | -6/Lower Caves | Entered another Lower Caves area 21869 | -6/Lower Caves | Discovered exit to Factory (range 9) 22037 | -6/Lower Caves | Entered a destroyed Warlord outpost 22408 | -6/Lower Caves | Build established: Skirmisher 22459 | -6/Lower Caves | Encountered a Warlord checkpoint 22539 | -6/Lower Caves | Discovered new exit (range 11) 22576 | -6/Lower Caves | Entered Zion 22617 | -6/Zion | System corruption cleaned by Quarantine Array 23029 | -6/Zion | Found GAL Module 23084 | -6/Zion | Identified exit to Proximity Caves 23178 | -6/Zion | Rebuked by Imprinter 23245 | -6/Zion | Found Prototype Launcher 23245 | -6/Zion | Identified Rocket Array 23274 | -6/Zion | Build established: Tank 23948 | -6/Zion | Entered Proximity Caves 24407 | -5/Proximity Caves | Attracted the attention of an 0b10 checkpoint 24909 | -5/Proximity Caves | Build established: Derelict-Tank 25601 | -5/Proximity Caves | Discovered exit to Factory (range 6) 25603 | -5/Proximity Caves | Learned Factory terminal intel 25688 | -5/Proximity Caves | Entered Factory 25688 | -5/Factory | Evolved 2 slots: Utility x2 25689 | -5/Factory | Identified exit to Upper Caves 25689 | -5/Factory | Identified exit to Extension 25690 | -5/Factory | Loaded intel: 28 terminal locations 26294 | -5/Factory | Garrison activated, responded to threat 26818 | -5/Factory | Build established: Tank 27069 | -5/Factory | Entered Extension 27113 | -5/Extension | Rescued a captive Derelict 27114 | -5/Extension | Rescued a captive Derelict 27206 | -5/Extension | Rescued a captive Derelict 27224 | -5/Extension | Rescued a captive Derelict 27330 | -5/Extension | Energy Cycler disabled 27331 | -5/Extension | Rescued a captive Derelict 27331 | -5/Extension | Rescued a captive Derelict 27331 | -5/Extension | Rescued a captive Derelict 27331 | -5/Extension | Rescued a captive Derelict 27333 | -5/Extension | Lost 3 allies 27797 | -5/Extension | Build established: Commander-Tank 27853 | -5/Extension | Spotted B-75 Beast 27864 | -5/Extension | Destroyed B-75 Beast 27877 | -5/Extension | Spotted B-75 Beast 27889 | -5/Extension | Discovered new exit (range 14) 27890 | -5/Extension | Allies destroyed B-75 Beast 28367 | -5/Extension | Discovered new exit (range 10) 28369 | -5/Extension | Discovered new exit (range 6) 29303 | -5/Extension | Unchained authorized (CL-0N3) 29499 | -5/Extension | K-01 Serf reconstituted as Hotshot 29501 | -5/Extension | Destroyed Hotshot 29501 | -5/Extension | Hotshot reconstituted as CL-0N3 29551 | -5/Extension | Lost 7 allies 29622 | -5/Extension | Entered Cetus 29622 | -5/Cetus | Accompanied by 6 allies 29643 | -5/Cetus | Spotted Cetus Guard 29643 | -5/Cetus | Spotted Cetus Guard 29646 | -5/Cetus | Spotted Cetus Guard 29647 | -5/Cetus | Destroyed Cetus Guard 29647 | -5/Cetus | Spotted Cetus Guard 29660 | -5/Cetus | Destroyed Cetus Guard 29670 | -5/Cetus | Allies destroyed Cetus Guard 29675 | -5/Cetus | Destroyed Cetus Guard 29694 | -5/Cetus | Lost 4 allies 29850 | -5/Cetus | Discovered new exit (range 16) 29935 | -5/Cetus | Spotted Cetus Guard 29935 | -5/Cetus | Entered Archives 29948 | -5/Archives | Build established: Scavenger-Tank 30073 | -5/Archives | Unable to access archive contents 30075 | -5/Archives | Discovered new exit (range 16) 30153 | -5/Archives | Discovered new exit (range 13) 30343 | -5/Archives | Entered Hub_04(d) 30657 | -5/Hub_04(d) | Network Hub disabled 30698 | -5/Hub_04(d) | Spotted Lightning 31021 | -5/Hub_04(d) | Garrison activated, responded to threat 31033 | -5/Hub_04(d) | Spotted Lightning 31039 | -5/Hub_04(d) | Discovered new exit (range 10) 31039 | -5/Hub_04(d) | Spotted Lightning 31039 | -5/Hub_04(d) | Spotted Lightning 31070 | -5/Hub_04(d) | Entered Factory 31070 | -4/Factory | Evolved 2 slots: Propulsion x2 31101 | -4/Factory | Lost 5 parts (1n2u2w) 31435 | -4/Factory | Build established: Scavenger-Gunner 31946 | -4/Factory | Identified exit to Upper Caves 31946 | -4/Factory | Identified exit to Armory 32171 | -4/Factory | Garrison activated, responded to threat 32696 | -4/Factory | Build established: Scavenger-Tank 33306 | -4/Factory | Build established: Tank 33659 | -4/Factory | Build established: Scientist-Tank 34518 | -4/Factory | Entered Upper Caves 34530 | -4/Upper Caves | Attracted the attention of an 0b10 checkpoint 34552 | -4/Upper Caves | Learned Research stockpile data 34911 | -4/Upper Caves | Attracted the attention of an 0b10 outpost 35034 | -4/Upper Caves | Spotted B-86 Titan 35349 | -4/Upper Caves | Discovered new exit (range 13) 35614 | -4/Upper Caves | Entered another Upper Caves area 35622 | -4/Upper Caves | Attracted the attention of an 0b10 checkpoint 36753 | -4/Upper Caves | Learned location of Armory (-4) 37007 | -4/Upper Caves | Spotted B-86 Titan 37047 | -4/Upper Caves | Discovered new exit (range 15) 37113 | -4/Upper Caves | Entered Warlord 37165 | -4/Warlord | System corruption cleaned by Quarantine Array 37304 | -4/Warlord | Received a Watcher feed algorithm from an ecstatic Tinkerer 37306 | -4/Warlord | Ran a Watcher feed algorithm 37588 | -4/Warlord | Found Prototype Device 37588 | -4/Warlord | Identified Exp. Cloaking Device 37594 | -4/Warlord | Found Prototype Reactor 37605 | -4/Warlord | Found Prototype Hackware 37609 | -4/Warlord | Found Prototype Processor 37897 | -4/Warlord | Visited the Vortex Lab 37908 | -4/Warlord | Found Prototype Energy Cannon 37908 | -4/Warlord | Identified Vortex Driver 37911 | -4/Warlord | Warlord's base attacked by MAIN.C 37915 | -4/Warlord | Found Vortex Driver 37919 | -4/Warlord | Found Prototype Launcher 37919 | -4/Warlord | Identified Vortex Catalyst Activator 38091 | -4/Warlord | Met Warlord 38261 | -4/Warlord | Warlord forces counterattacked 38265 | -4/Warlord | Opened side exit 38292 | -4/Warlord | Spotted Striker 38301 | -4/Warlord | Identified Exp. Armor Integrity Analyzer 38309 | -4/Warlord | Destroyed Striker 38354 | -4/Warlord | Spotted Striker 38385 | -4/Warlord | Discovered new exit (range 9) 38395 | -4/Warlord | Entered Proximity Caves 39177 | -3/Proximity Caves | Discovered new exit (range 11) 39396 | -3/Proximity Caves | Entered Research 39396 | -3/Research | Evolved 2 slots: Power x1, Utility x1 39439 | -3/Research | Found Prototype Device 39439 | -3/Research | Identified Exp. Shield Generator 39660 | -3/Research | Identified exit to DSF 40023 | -3/Research | Entered DSF 40044 | -3/DSF | Additional patrols routed to DSF 40045 | -3/DSF | Identified Vortex Chain Reactor 40202 | -3/DSF | Sterilization system engaged 40222 | -3/DSF | Ambient heat levels rising (+10) 40237 | -3/DSF | Ambient heat levels rising (+10) 40241 | -3/DSF | Found Prototype Launcher 40243 | -3/DSF | Found Prototype Launcher 40247 | -3/DSF | Found Prototype Launcher 40247 | -3/DSF | Identified Enh. Gamma Bomb Array (x3) 40252 | -3/DSF | Ambient heat levels rising (+10) 40266 | -3/DSF | Discovered new exit (range 11) 40267 | -3/DSF | Ambient heat levels rising (+10) 40282 | -3/DSF | Ambient heat levels rising (+10) 40297 | -3/DSF | Ambient heat levels rising (+10) 40312 | -3/DSF | Ambient heat levels rising (+10) 40327 | -3/DSF | Ambient heat levels rising (+10) 40332 | -3/DSF | Entered Research 40332 | -2/Research | Warlord forces began assault on 0b10 40332 | -2/Research | Evolved 2 slots: Utility x1, Weapon x1 40357 | -2/Research | Distinguished unit "Gunslingers" dispatched to help 40357 | -2/Research | Distinguished unit "Magnificent Bastards" dispatched to help 40442 | -2/Research | Research machine network offline 40579 | -2/Research | Build established: Infiltrator-Tank 40692 | -2/Research | Borebot progress halted 40733 | -2/Research | Discovered new exit (range 9) 40738 | -2/Research | Spotted Executioner 40741 | -2/Research | Spotted Executioner 40763 | -2/Research | Found Prototype Processor 40763 | -2/Research | Identified Exp. Core Analyzer 41058 | -2/Research | Borebot progress halted 41293 | -2/Research | Discovered new exit (range 13) 41489 | -2/Research | Discovered new exit (range 16) 41585 | -2/Research | Identified exit to Access 41737 | -2/Research | Lost 9 allies 41826 | -2/Research | Entered Access 41826 | -1/Access | Evolved 2 slots: Power x1, Utility x1 41964 | -1/Access | Identified System Mapper 42099 | -1/Access | Build established: Generator-Tank 42153 | -1/Access | Identified exit to Command 42238 | -1/Access | Garrison activated, responded to threat 42983 | -1/Access | Destroyed 12 combat bots 43325 | -1/Access | System corruption reached 10% 43428 | -1/Access | Found Unknown Protection 43428 | -1/Access | Identified Hvy. Reactive Plating 43924 | -1/Access | Entered Command 44000 | -1/Command | Spotted B-99 Colossus 45232 | -1/Command | Found Prototype Device 45232 | -1/Command | Identified Thermal Barrier 45958 | -1/Command | Repaired Hvy. Reactive Plating 46359 | -1/Command | Disengaged cave seal 46359 | -1/Command | Derelicts emerged from the dark tunnel 46359 | -1/Command | Welcomed Warlord to Command 46728 | -1/Command | Warlord commented on Warlord statues 46739 | -1/Command | Spotted M Guard 46740 | -1/Command | Spotted M Guard 46740 | -1/Command | Spotted Combat Programmer 46741 | -1/Command | Spotted Combat Programmer 46744 | -1/Command | Combat Programmer assimilated allied FW-66R(i) 46761 | -1/Command | Combat Programmer assimilated allied AS-3BC(i) 46762 | -1/Command | Combat Programmer assimilated allied 4Z-HLQ(i) 46765 | -1/Command | Destroyed Combat Programmer 46779 | -1/Command | All MAIN.C guards destroyed 46801 | -1/Command | Lost 14 allies 46891 | -1/Command | Met MAIN.C 46897 | -1/Command | Warlord shut down involuntarily 46906 | -1/Command | Destroyed MAIN.C Shell 46907 | -1/Command | MAIN.C activated Command garrisons 46908 | -1/Command | 0b10 Conduit disabled 46922 | -1/Command | Destroyed MAIN.C 46939 | -1/Command | Discovered new exit (range 44) 46939 | -1/Command | Discovered new exit (range 98) 46939 | -1/Command | Extracted map data and part IDs from MAIN.C's data core 46945 | -1/Command | Lost 5 allies 47159 | -1/Command | Found Vortex Chain Reactor 47161 | -1/Command | Found Zero-point Reactor 47165 | -1/Command | Found Centrium Heavy Armor Plating 47169 | -1/Command | Found Exp. Weapon Cycler 47172 | -1/Command | Found Exp. System Purifier 47332 | -1/Command | Build established: Generator-Gunner 47413 | -1/Command | Found Active Sensor Suite 48301 | -1/Command | Identified exit to Surface 48305 | *** | Establishing 0b11! Last Messages --------------- 48139_ G-73 Enforcer is broken beyond repair. 48140_ G-73 Enforcer destroyed. 48141_ Acquired 2 matter. 48141_ Acquired 13 matter. 48276_ Attempting to rewire Alpha 7. 48276_ Alpha 7 is broken beyond repair. 48282_ Acquired 5 matter. 48282_ Acquired 7 matter. 48282_ Acquired 3 matter. 48283_ Acquired 30 matter. 48283_ Alpha 7 destroyed. 48284_ Acquired 12 matter. 48284_ Acquired 3 matter. 48290_ The Access Shell folds into the floor. 48301_ Acquired 10 matter. 48301_ EXIT=IDENTIFIED: SURFACE 48302_ Discarded Adv. Signal Interpreter. 48303_ Acquired 10 matter. [Achievement: 75k Club] [Achievement: Commander 0b11] Map ----- +----------------------------------------------------+ | | | | | | | | | ?????????????????????????????????????????????????? | | ?????????????????????????????????????????????????? | | ?????????????????????????????????????????????????? | | ?????????????????????????????????????????????????? | | ???????????????????????????????????????????####### | | ???????????????????????????????????????????# | | ##############?????????????????????????????#!! = | | # #?????????????????????????????#!! | | # ! #?????????????????????????????# | | # #?????????????????????????????# | | # #?????????????????????????????# | | # = #?????????????????????????????# | | # #?????????????????????????????# | | # #????################?????????# | | # #????################?????????# | | # #????## ############ | | / #????## ############ | | # #????## ^^ ^^^^^ *!#%;=#%#### | | # #????## ^ ^ !^^!^^^%^^!#"#+### | | #################### ^ ^ ^^%^%^%^^%+% =%! | | ????????# ### ^ "" ^ ^^^^^^^^^^+*% = | | ???###### ### ^ @" ^ ^%^^^^^^^+%[ | | ###" # ### ^ ^ ! ^!^^^^^^+== | | " ### ^ ^ ^^^!^^^^^%!###### | | = " ### ^^^^^^ ^ [ !%#%#%###% #???? | | ###" !=*" ### ;#############???? | | ###"# %!#! ### ###########??????? | | # [!" #################???????????????? | | + ## ! #################???????????????? | | # ###########????????#############??????????? | | # #?????????# #??????????? | | # ##### #?????????# #??????????? | | # #???# #?????????# " T #??????????? | | ###+# ##/##### #?????????# #??????????? | | ### ## =# #?????????# #??????????? | | ##! # #?????????# #??????????? | | ## # #?????????# #??????????? | | ## / * # #?????????###########"#??????????? | | ## # #???????????????????# #??????????? | | ##! #+########????????????# #??????????? | | ## ! # #????????????# #???????#### | | "" ## # #????????????# #???????# ! | | """" ## #= #??????####### #???????# | | """" ## # #??????# ## #???????# | | "" ## # """" #??????# ##!######### ! | | ## # """" ######## ##*## " | +----------------------------------------------------+ Best States ------------- Heat Dissipation 157 Coolant Potential 120 Energy Generation 107 Energy Capacity 1800 Matter Stores 381 Matter Capacity 550 Sight Range 22 Robot Scan Range 20 Terrain Scan Range 20 Terrain Scan Density 210 Jamming Range 16 Cloak Strength 4 Power Amplification 30 Base Temperature (-) 150 Armor Coverage 1200 Resistance: KI 40 Resistance: TH 50 Propulsion Shielding 33 Weapon Shielding 90 Point Defense Rating 480 Weapon Cycling 30 Evasion (%) 65 Targeting Accuracy 20 Melee Accuracy 5 Launcher Accuracy 40 Target Analysis 6 Core Analysis 8 Armor Integrity Analysis 50 Recoil Reduction 6 Matter Filtering 30 Energy Filtering 30 Particle Charging 20 Kinecelleration 40 Offensive Hacking 34 Defensive Hacking 12 Authchip Count 3 Item Schematics ----------------- Combat Drone Bay | -7/Data Miner | Free Biomechanical Wings | -7/Data Miner | Free Gravity Neutralizer | -7/Data Miner | Free Imp. Heavy Machine Gun | -7/Data Miner | Free Lgt. Regenerative Plating | -7/Data Miner | Free Antigrav System | -7/Data Miner | Free Imp. Focal Shield | -7/Data Miner | Free Mass Driver | -7/Data Miner | Free Hvy. Flak Cannon | -7/Data Miner | Free Adv. System Restoration Module | -7/Data Miner | Free Lrn. Proton Cannon | -7/Data Miner | Free Hardcell Cannon | -7/Data Miner | Free Adv. Trap Scanner | -7/Data Miner | Free Force Field | -6/Zion | Archive Imp. Recalibrator | -6/Zion | Archive Lgt. Fission Core | -6/Zion | Archive Tesla Rifle | -6/Zion | Archive IFF Parser | -6/Zion | Archive Imp. System Guard | -6/Zion | Archive Plasma Rifle | -6/Zion | Archive Imp. Arc Projector | -6/Zion | Archive Fission Core | -6/Zion | Archive Adv. System Shield | -6/Zion | Archive Imp. Reaction Control System | -6/Zion | Archive Point Defense System | -6/Zion | Archive Remote Shield | -6/Zion | Archive Imp. Antigrav System | -6/Zion | Archive Robot Schematics ------------------ S-27 Virus | -7/Data Miner | Free L-41 Fighter | -7/Data Miner | Free A-15 Conveyor | -7/Data Miner | Free P-60 Hacker | -7/Data Miner | Free R-10 Processor | -7/Data Miner | Free A-02 Transporter | -6/Zion | Archive C-57 Dissector | -6/Zion | Archive Fabricated ------------ Nothing Repaired ---------- Arm. Huge Wheel | 24% | -7/Factory | Broken Adv. Cooling System | 94% | -7/Factory | Corrupted Hvy. Reactive Plating | 66% | -1/Command Studied --------- Arm. Huge Wheel | -8/Materials | Hacked Arm. Wheel | -8/Materials | Hacked Com. Wheel | -8/Materials | Hacked EM Pulse Cannon | -8/Materials | Hacked Imp. EM Pulse Cannon | -7/Factory | Hacked Proton Cannon | -5/Factory | Hacked Wheel | -5/Factory | Hacked Adv. Medium Treads | -4/Factory | Hacked Hvy. Mass Driver | -4/Factory | Hacked Hardcell Cannon | -4/Factory | Hacked Antimatter Reactor | -4/Factory | Hacked Hvy. Disruptor Cannon | -4/Factory | Hacked Hvy. Siege Treads | -4/Factory | Hacked Hyp. Gauss Cannon | -4/Factory | Hacked Lgt. Antimatter Reactor | -4/Factory | Hacked Alien Tech Used ----------------- None Achievements -------------- 75k Club A Problem For Future Me Better Safe Than Exploded Bumper Bots Commander 0b11 DIY Cooler Explosive Keycard Heavy Suspicion Hot Goods Hot Stuff I Laugh At Your Crits I Like You, Cogmind Immobile And Lovin' It Into The Breach Jackpot My Business Is Booming Off Switch Showdown Some Acronyms Are Better Than Others The Better Part Of Valor Window Shopping You Again Challenges ------------ None Game ------ Seed ActiveMassShearcannon Manual? 0 Play Time 11:34:01 Cumulative 335.0 hours Start 2026.01.10 @ 19:18:07 End 2026.01.17 @ 00:40:26 Sessions 25 Manual Loads 0 Difficulty Rogue Special Mode None Game No. 63 Rogue 63 Adventurer 0 Explorer 0 Win Type 1 Total 10 Types 4/1/3/1/0/0/0/1/0/0 Lore% 73 Gallery% 69 Achievement% 48 Wizard Run 0 Options --------- Layout 1 ASCII 0 Keyboard 1 Movement Vi Keybinds 1 Fullscreen 1 Font 36/Smallcaps Map View 50x40 Zoom Use 0% Tactical HUD 1 Map Filters NONE Filters NONE Steam 1 RUN: 636a3d3d-1429-4d6e-b700-02dd7775abbd